Workbook

Sheet Odluka Budžet 2018 R2
A2: Na osnovu ~lana 43. Zakona o buxetskom sistemu ("Slu`beni glasnik RS", br. 54/2009, 73/2010, 101/2010, 101/2011, 93/2012, 62/2013 i 63/2013 -ispravka, 108/2013, 142/2014, 68/2015 - dr. zakon, 103/2015, 99/2016 i 113/2017), ~lana 32. Zakona o lokalnoj samoupravi ("Slu`beni glasnik RS", broj 129/2007 i 83/2014 - dr. zakon, 101/2016 - др. закон и 47/2018) i ~lana 35. Statuta op{tine Bujanovac ("Slu`beni glasnik P~iwskog okruga", broj 24/2008) Skup{tina op{tine Bujanovac na sednici odr`anoj dana 24.12.2018. godine, donela je
A7: O D L U K U
A8: O БУЏЕТУ OP[TINE BUJANOVAC ZA 2019. GODINU
A10: I OP[TI DEO
A12: ^lan 1.
A14: Prihodi i primawa, rashodi i izdaci buxeta op{tine Bujanovac za 2019. (u daqem tekstu: buxet), sastoje se od :
A16: А. РАЧУН ПРИХОДА И ПРИМАЊА, РАСХОДА И ИЗДАТАКА
A17: 1. Укупани приходи и примања од продаје нефинансијске имовине | K17: =K18+K22 -> 1056630000
A18: 1.1. TEKUЋI PRIHODI u ~emu | K18: =K19+K20+K21 -> 1056630000
A19: - буџетска средства | K19: =1056630000-4700000 -> 1051930000
A20: - сопствени приходи
A21: - донације | K21: 4700000
A22: 1.2. ПРИМАЊА ОД ПРОДАЈЕ НЕФИНАНСИЈСКЕ ИМОВИНЕ
A23: 2. Укупни расходи и иzдаци zа набавку нефинансијске имовине | K23: =K24 -> 1060463520
A24: 2.1. ТЕКУЋИ РАСХОДИ у чему: | K24: =K25+K26+K27 -> 1060463520
A25: - текући буџетски расходи | K25: =H202 -> 923480000
A26: - расходи из сопствених прихода
A27: - доnacije, dotacije i transferi | K27: =J202 -> 136983520
A28: БУЏЕТСКИ СУФИЦИТ/ДЕФИЦИТ | K28: =K17-K23 -> -3833520
A29: Издаци за набавку финансијске имовине (у циљу спровођења јавних политика)
A30: УКУПАН ФИСКАЛНИ СУФИЦИТ/ДЕФИЦИТ | K30: =K28 -> -3833520
A31: БУЏЕТСКИ СУФИЦИТ/ДЕФИЦИТ | K31: =K30 -> -3833520
A32: Б. РАЧУН ФИНАНСИРАЊА
A33: Примања од продаје финансијске имовине
A34: Примања од заду`ивања
A35: Неутрошена средства из предходних година | K35: 3833520
A36: Издаци за отплату главнице дуга
A37: НЕТО ФИНАНСИРАЊЕ
A39: Приходи и примања, расходи и издаци буџета утврђени су у следећим износима
A41: ОПИС | H41: Економска класификација | K41: Износ у динарима
A43: 1 | H43: 2 | K43: 3
A44: УКУПНИ ПРИХОДИ И ПРИМАЊА ОД ПРОДАЈЕ НЕФИНАНСИЈСКЕ ИМОВИНЕ | K44: =K46+K58+K62+K63+K61 -> 1056630000
A46: 1. Порески приходи | H46: 71 | K46: =K47+K48+K49+K50 -> 368650000
A47: 1.1. Порез на доходак, добит и капиталне добиткa (осим самодоприноса) | H47: 711 | K47: 247000000
A48: 1.2. Самодопринос | H48: 711180
A49: 1.3. Порез на имовину | H49: 713 | K49: 66550000
A50: 1.4. Остали порески приходи | K50: =28100000+27000000 -> 55100000
A55: ОПИС | H55: Економска класификација | K55: Износ у динарима
A57: 1 | H57: 2 | K57: 3
A58: 2. Непорески приходи, у чему: | H58: 74 | K58: =73150000+48210000+11680000+9082302 -> 142122302
A59: поједине врсте накнада са одређеном наменом (наменски приходи)
A60: приходи од продаје добара и услуга
A61: 3. Донације | H61: 731 + 732 | K61: =4700000 -> 4700000
A62: 4. Трансфери | H62: 733 | K62: 540857698
A63: 5. Примања од продаје нефинансијске имовине | H63: 8 | K63: 300000
A64: УКУПНИ РАСХОДИ И ИЗДАЦИ ЗА НАБАВКУ НЕФИНАНСИЈСКЕ И ФИНАНСИЈСКЕ ИМОВИНЕ | K64: =K65+K73 -> 1060463520
A65: 1. Текући расходи | H65: 4 | K65: =K66+K67+K68+K69+K70+K71+K72 -> 779091000
A66: 1.1. Расходи за запослене | H66: 41 | K66: =L171 -> 283370500
A67: 1.2. Коришћење роба и услуга | H67: 42 | K67: =L178 -> 208073200
A68: 1.3. Отплата камата | H68: 44
A69: 1.4. Субвенције | H69: 45 | K69: =L181 -> 45250000
A70: 1.5. Социјална заштита из буџета | H70: 47 | K70: =L187 -> 25840000
A71: 1.6. Остали расходи, у чему: средства резерви | H71: 48 + 49 | K71: =L192+L194 -> 53242600
A72: 2. Трасфери | H72: 46 | K72: =L185 -> 163314700
A73: 3. Издаци за набавку нефинансијске имовине | H73: 5 | K73: =L201 -> 281372520
A74: 4. Издаци за набавку финансијске имовине (осим 6211) | H74: 62
A75: ПРИМАЊА ОД ПРОДАЈЕ ФИНАНСИЈСКЕ ИМОВИНЕ И ЗАДУЖИВАЊА | K75: 0
A76: 1. Примања по основу отплате кредита и продаје финансијске имовине | H76: 92
A77: 2. Заду`ивање | H77: 91 | K77: 0
A78: 2.1. Заду`ивање код домаћих кредитора | H78: 911
A79: 2.2. Заду`ивање код страних кредитора | H79: 912
A80: ОТПЛАТА ДУГА И НАБАВКА ФИНАНСИЈСКЕ ИМОВИНЕ
A81: 3. Отплата дуга | H81: 61 | K81: 0
A82: 3.1. Отплата дуга домаћим кредиторима | H82: 611
A83: 3.2. Отплата дуга страним кредиторима | H83: 612
A84: 3.3. Отплата дуга по гаранцијама | H84: 613
A85: 4. Набавка финансијске имовине | H85: 6211
A87: НЕРАСПОРЕЂЕНИ ВИШАК ПРИХОДА ИЗ РАНИЈИХ ГОДИНА (класа 3, извор финансирања 13)
A89: НЕУТРОШЕНА СРЕДСТАВА ОД ПРИВАТИЗАЦИЈЕ ИЗ ПРЕТХОДНИХ ГОДИНА (класа 3, извор финансирања 14)
A91: Члан 2.
A93: Teku}i prihodi i primawa од продаје нефинансијске имовине са пренетим средствима из претходне године buxeta op{tine Bujanovac utvr|eni su u iznosu od 1.060.463.520,00 dinara (tabela po vrstama prihoda i primawa nalazi se u prilogu Odluke o buxetu za 2019. godinu (1-3)):
G97: 3775000 | H97: 1260500000
G98: 2433310
G99: =G97+G98 -> 6208310
A158: Члан 3.
A160: Издаци буџета по osnovnim наменама утврђени су i raspore|eni u 2019. godini u следећим износима:
A162: еко.клас. | D162: ОПИС | H162: Средства из буџета | J162: Sredstva iz осталих извора | L162: Укупно
A163: 1 | D163: 2 | H163: 3 | J163: 4 | L163: 5
A164: 400 | D164: TEKU]I RASHODI | H164: =H171+H178+H181+H185+H187+H192+H194 -> 760941000 | J164: =J171+J178+J181+J185+J187+J192+J194 -> 18150000 | L164: =L171+L178+L181+L185+L187+L192+L194 -> 779091000
A165: 411 | D165: Плате, додаци и накнаде запосленима | H165: 227906000 | L165: =H165+J165 -> 227906000 | N165: =H165+#REF! -> 
A166: 412 | D166: Социјални доприноси на терет послодавца | H166: 40632500 | L166: =H166+J166 -> 40632500 | N166: =H166+#REF! -> 
A167: 413 | D167: Накнаде у натури | H167: 412000 | L167: 412000 | N167: =H167+J167 -> 412000
A168: 414 | D168: Социјана давања запосленима | H168: 2480000 | L168: 2480000 | N168: =H168+#REF! -> 
A169: 415 | D169: Накнаде трошкова за запослене | H169: 9660000 | L169: 9660000 | N169: =H169+#REF! -> 
A170: 416 | D170: Награде, бонуси и остали пословни расхода | H170: 2280000 | L170: 2280000 | N170: =H170+#REF! -> 
A171: 410 | D171: РАСХОДИ ЗА ЗАПОСЛЕНЕ | H171: =H165+H166+H167+H168+H169+H170 -> 283370500 | J171: =J165+J166+K167+J168+J169+J170 -> 0 | L171: =L165+L166+L167+L168+L169+L170 -> 283370500 | N171: =N165+N166+N167+N168+N169+N170+#REF! -> 
A172: 421 | D172: Стални трошкови | H172: 51155500 | L172: 51155500 | N172: =H172+#REF!+J172 -> 
A173: 422 | D173: Трошкови путовања | H173: 2765500 | L173: 2765500 | N173: =H173+#REF!+J173 -> 
A174: 423 | D174: Услуге по уговору | H174: 72469000 | J174: 6250000 | L174: 78719000 | N174: =H174+#REF!+J174 -> 
A175: 424 | D175: Специјализоване услуге | H175: 18467000 | L175: 18467000 | N175: =H175+#REF!+J175 -> 
A176: 425 | D176: Текуће поправке и одржавање | H176: =33581000+1200000 -> 34781000 | J176: 4700000 | L176: 39481000 | N176: =H176+#REF!+J176 -> 
A177: 426 | D177: Материјал | H177: 17485200 | L177: 17485200 | N177: =H177+#REF!+J177 -> 
A178: 420 | D178: КОРИШЋЕЊЕ УСЛУГА И РОБА | H178: =H172+H173+H174+H175+H176+H177 -> 197123200 | J178: =J172+J173+J174+J175+J176+J177 -> 10950000 | L178: =L172+L173+L174+L175+L176+L177 -> 208073200 | N178: =N172+N173+N174+N175+N176+N177 -> 
A179: 451 | D179: Subvencije | H179: 35250000 | L179: 35250000 | N179: =L179 -> 35250000
A180: 454 | D180: Subvencije privatnim preduze|ima | H180: 10000000 | L180: 10000000
A181: 450 | D181: SUBVENCIJE | H181: =H179+H180 -> 45250000 | J181: =K179 -> 0 | L181: =L179+L180 -> 45250000
A182: 463 | D182: Transferi osltalim nivoima vlasti | H182: 120191700 | L182: 120191700 | N182: =H182+J182+K182 -> 120191700
A183: 464 | D183: Dotacije organizacijama obaveznog soc.osigurawa | H183: 22450000 | L183: 22450000 | N183: =H183+J183+K183 -> 22450000
A184: 465 | D184: Ostale teku}e doacije po zakonu | H184: 20673000 | L184: 20673000 | N184: =H184+#REF!+J184 -> 
A185: 460 | D185: DONACIJE, DOTACIJE I TRANSFERI | H185: =H182+H184+H183 -> 163314700 | J185: =K182+J184 -> 0 | L185: =L182+L184+L183 -> 163314700 | N185: =N182+N183+N184 -> 
A186: 472 | D186: Naknade za socijalnu za{titu iz buxeta | H186: 18640000 | J186: 7200000 | L186: =K186+J186+H186 -> 25840000 | N186: =H186+K186 -> 18640000
A187: 470 | D187: СОЦИЈАЛНО ОСИГУРАЊЕ И СОЦИЈАЛНА ЗАШ. | H187: =H186 -> 18640000 | J187: =J186 -> 7200000 | L187: =L186 -> 25840000
A188: 481 | D188: Дотације невладиним организацијама | H188: 30762000 | L188: =K188+J188+H188 -> 30762000 | N188: =H188 -> 30762000
A189: 482 | D189: Порези , обавезне таксе и казне | H189: 1017000 | L189: 1017000 | N189: =H189+#REF! -> 
A190: 483 | D190: Нов~ане казне и пенали по решењу судова | H190: 9166000 | L190: 9166000 | N190: =H190 -> 9166000
A191: 485 | D191: Накнада штете за неискоришћен годишњи одмор | H191: 1600000 | L191: 1600000
A192: 480 | D192: ОСТАЛИ РАСХОДИ | H192: =H188+H189+H190+H191 -> 42545000 | J192: =K188+J189+J190+K191 -> 0 | L192: =L188+L189+L190+L191 -> 42545000 | N192: =N188+N189+N190 -> 
A193: 499 | D193: Sredstva rezerve | H193: =500000+10197600 -> 10697600 | L193: 10697600
A194: 490 | D194: СРЕДСТВА РЕЗЕРВИ | H194: =H193 -> 10697600 | J194: =K193 -> 0 | L194: =L193 -> 10697600 | N194: =L192+L194 -> 53242600
A196: 500 | D196: KAPITALNI IZDACI | H196: =H201 -> 162539000 | J196: =J201 -> 118833520 | L196: =L201 -> 281372520
A197: 511 | D197: Зграде и грађевински објекти | H197: =149749000+3950000 -> 153699000 | J197: =115000000+3833520 -> 118833520 | L197: 272532520 | N197: =H197+#REF!+J197 -> 
A198: 512 | D198: Машине и опрема | H198: 5150000 | L198: 5150000 | N198: =H198+#REF!+J198 -> 
A199: 515 | D199: Нематеријална имовина | H199: 690000 | L199: 690000 | N199: =H199 -> 690000
A200: 541 | D200: Набавка земљишта | H200: 3000000 | L200: 3000000
A201: 510 | D201: ОСНОВНА СРЕДСТВА | H201: =H197+H198+H199+H200 -> 162539000 | J201: =J197+J198+J199+J200 -> 118833520 | L201: =L197+L198+L199+L200 -> 281372520 | N201: =N197+N198+N199 -> 
D202: У К У П Н I JAVNI RASHODI | H202: =H164+H201 -> 923480000 | J202: =J164+J201 -> 136983520 | L202: =L164+L201 -> 1060463520 | M202: =M201+M194+M192+M187+M185+M181+M178+M171 -> 0
A209: Члан 4.
A210: Rashodi i izdaci iz ~lana 1 ove odluke koriste se za slede}e programe:
B212: NAZIV PROGRAMA | I212: IZNOS | L212: Struktura %
B213: Program 1: Урбанизам i prostorno planirawe | I213: =Програми!B7 -> 41797000 | L213: =I213/I230*100 -> 3.941389705
B214: Program 2: Komunalnе delatnostи | I214: =Програми!B8 -> 76772000 | L214: =I214/I230*100 -> 7.23947581
B215: Program 3: Lokalni економски razvoj | I215: =Програми!B9 -> 25000000 | L215: =I215/I230*100 -> 2.357459689
B216: Program 4: Razvoj turizma | I216: =Програми!B10 -> 9026500 | L216: =I216/I230*100 -> 0.8511843953
B217: Program 5: Razvoj poqoprivrede | I217: =Програми!B11 -> 22400000 | L217: =I217/I230*100 -> 2.112283881
B218: Program 6: Za{tita `ivotne sredine | I218: =Програми!B12 -> 31350000 | L218: =I218/I230*100 -> 2.95625445
B219: Program 7: Организација саобраћаја и саобраћајна инфраструктура | I219: =Програми!B13 -> 187273000 | L219: =I219/I230*100 -> 17.65954193
B220: Program 8: Pred{kolsko vaspitawe | I220: =Програми!B14 -> 110543000 | L220: =I220/I230*100 -> 10.42402666
B221: Program 9: Osnovno obrazovawe | I221: =Програми!B15 -> 78064200 | L221: =I221/I230*100 -> 7.361328186
B222: Program 10: Sredwe obrazovawe | I222: =Програми!B16 -> 44527500 | L222: =I222/I230*100 -> 4.198871452
B223: Program 11: Socijalna i de~ja za{tita | I223: =Програми!B17 -> 22840000 | L223: =I223/I230*100 -> 2.153775172
B224: Program 12: Зdravstvena za{tita | I224: =Програми!B18 -> 23000000 | L224: =I224/I230*100 -> 2.168862914
B225: Program 13: Razvoj kulture | I225: =Програми!B19 -> 57172000 | L225: =I225/I230*100 -> 5.391227413
B226: Program 14: Razvoj sporta i omladine | I226: =Програми!B20 -> 35416200 | L226: =I226/I230*100 -> 3.339690553
B227: Program 15: Lokalna samouprava | I227: =Програми!B21 -> 239028600 | L227: =I227/I230*100 -> 22.54001156
B228: Program 16: Политички систем локалне самоуправе | I228: =Програми!B22 -> 37420000 | L228: =I228/I230*100 -> 3.528645662
B229: Program 17: Енергетска ефикасност и обновљиви извори енергије | I229: =Програми!B23 -> 18833520 | L229: =I229/I230*100 -> 1.775970568
B230: UKUPNO ZA PROGRAM OD 1-17 | I230: =SUM(I213:K229) -> 1060463520
A265: III ИЗВРШЕЊЕ БУЏЕТА
A267: Члан 8.
A268: У складу са Законом о начину одређивања максималног броја запослених у јавном сектору ("Службени гласник РС", број 68/2015 i 81/2016 - odluka US), i Odluke SO Bujanovac o odreђивању максималног броја запослених на неодређено време за сваки организациони облик у систему локалне самоуправе општине Бујановац за 2017. годину број 02-96/17 од 30.11.2017. године, број запослених код корисника буџета не може прећи максималан број запослених на неодређено и одређено време, и то:
M271: ??????
C272: 165 | E272: zaposleni u lokalnoj општинској управи na neodre|eno vreme;
C273: 17 | E273: zaposleni u lokalnoj општинској управи na odre|eno vreme;
C274: 82 | E274: zaposleni u pred{kolskој ustanovи "Наша Радост" na neodre|eno vreme;
E275: zaposleni u pred{kolskој ustanovи "Наша Радост" na odre|eno vreme;
C276: 16 | E276: запослени у Дому културе "Вук Караџић" Бујановац на неодређено време;
C277: 2 | E277: запослени у Дому културе "Вук Караџић" Бујановац на одређено време;
C278: 14 | E278: запослени у Библиотеци "14. новембар"Бујановац на неодређено време;
C279: 1 | E279: запослени у Библиотеци "14. новембар"Бујановац на одређено време;
C280: 18 | E280: запослени у СЦ "Младост" Бујановац на неодређено време;
C281: 1 | E281: запослени у СЦ "Младост" Бујановац на одређено време;
C282: 6 | E282: запослени у Туристичкој организацији Бујановац на неодређено време;
E283: запослени у Туристичкој организацији Бујановац на одређено време;
A285: U ovoj odluci o buxetu sredstva za plate se obezbe|uju za broj zaposlenih iz stava 1. ovog ~lana.
A287: Члан 9.
A288: За извршавање ове Одлуке одговоран је председник општине.
A289: Наредбодавац за извршење буџета је председник општине.
A291: Члан 10.
A292: Наредбодавац диретних и индиректних коriсника буџетских средстава је функционер (руководилац), односно лице које је одговорно за управљање средствима, преузимање обавеза, издавање налога за пла}ање који се извршавају из средстава органа као и издавање налога за уплату средстава која припадају буџету.
A295: Члан 11.
A296: За законито и наменско коришћење средстава распоређених овом Одлуком, поред функционера односно руководиоца директних и индиректних корисника буџетских средстава, одговоран је начелник општинске управе.
A299: Члан 12.
A300: Орган управе надлежан за финансије обавезан је да редовно прати извршење буџета и најмање два пута годишње информише председника општине (општинско веће), а обавезно у року од петнаест дана по истеку шестомесечног, односно деветомесечног периода.
A301: У року од петнаест дана по подношењу извештаја из става 1. овог члана општинско веће усваја и доставља извештај Скупштини општине.
A302: Извештај садржи и одступања између усвојеног буџета и извршења и образложење великих одступања.
A304: Члан 13.
A305: Одлуку о промени апропијације из општих прихода буџета и преносу апропијације у текућу буџетску резерву, у складу са чланом 61. Закона о буџетском систему доноси општинско веће.
A307: Члан 14.
A308: Решење о употреби текуће буџетске резерве и сталне буџетске резерве на предлог локалног органа управе надлежног за финансије доноси општинско веће.
A310: Члан 15.
A311: Одлуку о отварању буџетског фонда у складу са чланом 64. Закона о буџетском систему доноси општинско веће.
A313: Члан 16.
A314: Општинско веће одговорно је за спровођење фискалне политике и управљање јавном имовином, приходима и примањима и расходима и издацима на начин који је у складу са Законом о буџетском систему.
A316: Члан 17.
A317: Овлаш}ује се председник општине да, у складу са чланом 27ж Закона о буџетском систему, мо`е поднети захтев министраству надлежном за послове финансија за одобрење фискалног дефицита изнад утврђеног дефицита од 10%, уколико је резултат реалiзације јавних инвестиција.
A319: Члан 18.
A320: Новчана средства буџета општине, директних и индиректних корисника средстава тог буџета, као и други корисници јавних средстава који су укључени у консолидовни рачун трезора општине, воде се и депонују на консолидованом рачуну трезора.
A322: Члан 19.
A323: Распоред и коришћење средстава вршиће се у 2019. години по посебном акту (решење) које доноси председник општине, на предлог органа за финансије у оквиру следећих раздела:
A324: - Раздео 1: Скупштина општине
A325: - Раздео 2: Председник општине
A326: - Раздео 3: Општинско веће
A327: - Раздео 4: Правобранилаштво општине Бујановац
A328: - Раздео 5: Општинска управа.
A330: Члан 20.
A331: Обавезе које преузимају директни и индиректни корисници буџетских средстава морају одговарати апропијацији која им је за ту намену овом Одлуком одобрена и пренета.
A332: Изузетно корисници из става 1. овог члана, у складу са чланом 54. Закона о буџетском систему, могу преузети обавезе по уговору који се односи на капиталне издатке и захтева плаћање у више година, на основу предлога органа надлежног за послове финансија, уз сагласност општинског већа, а највише до износа исказаних у плану капиталних издатака из члана 3. ове одлуке. Корисници буџетских средстава су обавезни да пре покретања поступка јавне набавке за преузимање обавеза по уговору за капиталне пројекте прибаве сагласност органа надлежног за финансије.
A333: Корисник буџетских средстава, који одређени расход извршава из средства буџета и из других прихода, обавезан је да измирење тог расхода прво врши из прихода из тих других извора.
A334: Обавезе преузете у 2019. години у складу са одобреним апропијацијама у тој години, а не извршене у току 2019. године, преносе се у 2020. годину и имају статус преузетих обавеза и извршавају се на терет одобрених апропијација овом одлуком.
A336: Члан 21.
A337: Преузете обавезе и све финансијске обавезе морају бити извршене искључиво на принципу готовинске основе са konsolidovanog ra~una trezora , осим ako je zakonom, odnosno aktom Vlade predvi|en druga~iji metod.
A339: Члан 22.
A340: Korisnici buxetskih sredstava preuzimaju obaveze samo на оsnovu pisanog ugovora ili drugog pravnog akta, ukoliko zakonom nije drugaчije propisano.
A341: Плаћање из буџета неће се извршити уколико нису поштоване процедуре утврђене чланом 56. став 3. Закона о буџетском систему.
A343: Члан 23.
A344: Корисници буџетских средстава приликом додељивања уговора о набавци добара, пружању услуга или извођењу грађевинских радова, морају да поступе у складу са Zakonom o javnim nabavkama (''Slu`beni glasnik RS'', broj 124/2012, 14/2015 i 68/2015). Javna nabavka male vreдnosti, u smislu ~lana 39. Zakona o javnim nabavkama smatra se nabavka istovrsnih dobara, usluga ili radova ~ija je ukupna procewena vrednost na godi{wem nivou ni`a od 5.000.000,00 dinara.
A346: Члан 24.
A347: Обавезе према корисницима буџетских средстава извршавају се сразмерно оствареним примањима буџета. Ако се у току годинe primawa смање, издаци буџета извршаваће се по приоритетима, и то: обавезе утврђене законским прописима на постојећем нивоу и минимални стални трошкови неопходни за несметано функционисање корисника буџетских средстава.
A349: Члан 25.
A350: Средства распоређена за финансирање расхода и издатака корисника буџета, преносе се на основу њиховог захтева и у складу са одобреним квотама у тромесечним плановима буџета.
... 33 more rows

Sheet Prihodi R1
A1: PLAN PRIHODA
A2: 1 | B2: BUXET OP[TINE BUJANOVAC
A3: ekonomska klasifik. | B3: opis | C3: sredstva iz buxeta | D3: Sredstva iz ostalih izvora | E3: Sredstva iz sopstvenih izvora | F3: Sredstva iz ostalih izvora | G3: Sredstva iz ostalih izvora | H3: Ukupno | I3: struktura u %
B4: Preneta sredstva iz predhodne godine | C4: 3833520 | H4: =C4+D4+E4+F4 -> 3833520 | I4: =H4/H136*100 -> 0.3614947547
A5: 710000 | B5: Porezi | C5: =C6+C27+C41+C58 -> 368650000 | D5: =D6+D27+D41+D58 -> 0 | F5: =F6+F27+F41+F58 -> 0 | G5: =G6+G27+G41+G58 -> 0 | H5: =H6+H27+H41+H58 -> 368650000 | I5: =H5/H135*100 -> 34.88922329
A6: 711000 | B6: Porezi na dohodak i kapitalne dobitke koje pla}aju fizi~ka lica | C6: =C7+C9+C13+C19+C21+C23 -> 247000000 | D6: =D7+D9+D13+D19+D21+D23 -> 0 | F6: 0 | G6: 0 | H6: =C6+D6+E6+F6 -> 247000000 | I6: =H6/H135*100 -> 23.37620548
A7: 711110 | B7: Porez na zarade | C7: =C8 -> 206500000 | D7: =D8 -> 0 | F7: 0 | H7: =C7+D7+E7+F7 -> 206500000 | I7: =H7/H135*100 -> 19.54326491
A8: 711111 | B8: Порез на зараде | C8: 206500000 | H8: 206500000 | I8: =H8/H135*100 -> 19.54326491
A9: 711120 | B9: Porez na prihode od samostalnih delatnosti | C9: =C10+C11+C12 -> 12550000 | D9: =D10+D11+D12 -> 0 | F9: 0 | G9: 0 | H9: 12550000 | I9: =H9/H135*100 -> 1.187738376
A10: 711121 | B10: Порез на приходе од самосталних делатности који се плаћа према стварно оствареном приходу, по решењу Пореске управе | C10: 150000 | H10: 150000 | I10: =H10/H135*100 -> 0.0141960762
A11: 711122 | B11: Порез на приходе од самосталних делатности који се плаћа према паушално утврђеном приходу, по решењу Пореске управе | C11: 7200000 | H11: 7200000 | I11: =H11/H135*100 -> 0.6814116578
A12: 711123 | B12: Порез на приходе од самосталних делатности који се плаћа према стварно оствареном приходу самоопорезивањем | C12: 5200000 | H12: 5200000 | I12: =H12/H135*100 -> 0.4921306418
A13: 711140 | B13: Porez na prihode od imovine | C13: =C14+C15+C16+C17+C18 -> 300000 | D13: =D14+D15+D16+D17+D18 -> 0 | F13: 0 | G13: 0 | H13: 300000 | I13: =H13/H135*100 -> 0.02839215241
A14: 711143 | B14: Порез на приходе од непокретности | C14: 50000 | H14: 50000 | I14: =H14/H135*100 -> 0.004732025402
A15: 711145 | B15: Порез на приходе од давања у закуп покретних ствари - по основу самоопорезивања и по решењу Пореске управе | C15: 100000 | H15: 100000 | I15: =H15/H135*100 -> 0.009464050803
A16: 711146 | B16: Порез на приход од пољопривреде и шумарства, по решењу Пореске управе | C16: 50000 | H16: 50000 | I16: =H16/H135*100 -> 0.004732025402
A17: 711147 | B17: Порез на земљиште | C17: 50000 | H17: 50000 | I17: =H17/H135*100 -> 0.004732025402
A18: 711148 | B18: Порез на приходе од непокретности, по решењу Пореске управе | C18: 50000 | H18: 50000 | I18: =H18/H135*100 -> 0.004732025402
A19: 711160 | B19: Porez na prihode od osigurawa lica | C19: =C20 -> 0 | D19: =D20 -> 0 | F19: 0 | H19: 0 | I19: =C19/C135*100 -> 0
A20: 711161 | B20: Порез на приходе од осигурања лица | H20: 0 | I20: =C20/C135*100 -> 0
A21: 711180 | B21: Samodoprinosi | C21: =C22 -> 0 | D21: =D22 -> 0 | F21: 0 | H21: 0 | I21: =C21/C135*100 -> 0
A22: 711181 | B22: Самодоприноси | H22: 0 | I22: =C22/C135*100 -> 0
A23: 711190 | B23: Porez na druge prihode | C23: =C24+C26+C25 -> 27650000 | D23: =D24+D26+D25 -> 0 | F23: 0 | G23: 0 | H23: 27650000 | I23: =H23/H135*100 -> 2.616810047
A24: 711191 | B24: Порез на друге приходе | C24: 27450000 | H24: 27450000 | I24: =H24/H135*100 -> 2.597881945
A25: 711192 | B25: Porez na neprijavqeni prihod utvr|en unakrsnom procenom | C25: 100000 | H25: 100000 | I25: =H25/H135*100 -> 0.009464050803
A26: 711193 | B26: Porez na prihode sportista i sportskih stru~waka | C26: 100000 | H26: 100000 | I26: =H26/H135*100 -> 0.009464050803
A27: 713000 | B27: Porez na imovinu | C27: =C28+C32+C34+C39 -> 66550000 | D27: =D28+D32+D34+D39 -> 0 | F27: 0 | G27: 0 | H27: 66550000 | I27: =H27/H135*100 -> 6.298325809
A28: 713120 | B28: Porez na imovinu | C28: =C29+C30+C31 -> 38800000 | D28: =D29+D30+D31 -> 0 | F28: =F29+F30+F31 -> 0 | G28: 0 | H28: 38800000 | I28: =H28/H135*100 -> 3.672051712
A29: 713121 | B29: Порез на имовину (осим на земљиште, акције и уделе) од физичких лица | C29: 19800000 | H29: 19800000 | I29: =H29/H135*100 -> 1.873882059
A30: 713122 | B30: Порез на имовину (осим на земљиште, акције и уделе) од правних лица | C30: 19000000 | H30: 19000000 | I30: =H30/H135*100 -> 1.798169653
A31: 713125 | B31: Порез на имовину обвезника који воде пословне књиге | H31: 0 | I31: =C31/C135*100 -> 0
A32: 713310 | B32: Porez na nasle|e i poklon | C32: =C33 -> 5000000 | D32: =D33 -> 0 | F32: 0 | G32: 0 | H32: 5000000 | I32: =H32/H135*100 -> 0.4732025402
A33: 713311 | B33: Порез на наслеђе и поклон по решењу Пореске управе | C33: 5000000 | H33: 5000000 | I33: =H33/H135*100 -> 0.4732025402
A34: 713420 | B34: Porez na kapitalne transakcije | C34: =C35+C36+C37+C38 -> 22750000 | D34: =D35+D36+D37+D38 -> 0 | F34: 0 | G34: 0 | H34: 22750000 | I34: =H34/H135*100 -> 2.153071558
A35: 713421 | B35: Порез на пренос апсолутних права на непокретности, по решењу Пореске управе | C35: 15500000 | H35: 15500000 | I35: =H35/H135*100 -> 1.466927874
A36: 713422 | B36: Порез на пренос апсолутних права на акцијама и другим хартијама од вредности, по решењу Пореске управе | C36: 50000 | H36: 50000 | I36: =H36/H135*100 -> 0.004732025402
A37: 713423 | B37: Порез на пренос апсолутних права на моторним возилима, пловилима и ваздухопловима, по решењу Пореске управе | C37: 7200000 | H37: 7200000 | I37: =H37/H135*100 -> 0.6814116578
A38: 713424 | B38: Порез на пренос апсолутних права у осталим случајевима, по решењу Пореске управе | H38: 0 | I38: =C38/C135*100 -> 0
A39: 713610 | B39: Porez na akcije na ime i udele | C39: =C40 -> 0 | D39: =D40 -> 0 | F39: 0 | H39: 0 | I39: =C39/C135*100 -> 0
A40: 713611 | B40: Порез на акције на име и уделе | H40: 0 | I40: =C40/C135*100 -> 0
A41: 714000 | B41: Porez na dobra i usluge | C41: =C42+C44+C46+C49+C52+C54+C56 -> 28100000 | D41: =D42+D44+D46+D49+D52+D54+D56 -> 0 | F41: =F42+F44+F46+F49+F52+F54+F56 -> 0 | G41: =G42+G44+G46+G49+G52+G54+G56 -> 0 | H41: 28100000 | I41: =H41/H135*100 -> 2.659398276
A42: 714430 | B42: Komunalna taksa za kori{}ewe reklamnih panoa | C42: =C43 -> 200000 | D42: =D43 -> 0 | F42: 0 | G42: 0 | H42: 200000 | I42: =H42/H135*100 -> 0.01892810161
A43: 714431 | B43: Комунална такса за коришћење рекламних паноа, укључујући и истицање и исписивање фирме ван пословног простора на објектима и просторима који припадају јединици локалне самоуправе(коловози, тротоари, зелене површине, бандере и сл.) | C43: 200000 | H43: 200000 | I43: =H43/H135*100 -> 0.01892810161
A44: 714440 | B44: Sredstva za vanredne situacije | C44: =C45 -> 0 | D44: =D45 -> 0 | F44: 0 | H44: 0 | I44: =C44/C135*100 -> 0
A45: 714441 | B45: Средства за противпожарну заштиту | H45: 0 | I45: =C45/C135*100 -> 0
A46: 714510 | B46: Porezi, takse I naknade na motorna vozila | C46: =C47+C48 -> 21000000 | D46: =D47+D48 -> 0 | F46: 0 | G46: 0 | H46: 21000000 | I46: =H46/H135*100 -> 1.987450669
A47: 714513 | B47: Комунална такса за држање моторних друмских и прикључних возила, осим пољопривредних возила и машина | C47: 21000000 | H47: 21000000 | I47: =H47/H135*100 -> 1.987450669
A48: 714514 | B48: Годишња накнада за друм.мот. возила, тракторе и прикључна возила | H48: 0 | I48: =C48/C135*100 -> 0
A49: 714540 | B49: Naknade za kori{}ewe dobara od op{teg interesa | C49: =C50+C51 -> 1600000 | D49: =D50 -> 0 | F49: =F50 -> 0 | G49: =G50 -> 0 | H49: 1600000 | I49: =H49/H135*100 -> 0.1514248128
A50: 714543 | B50: Накнада за промену намене обрадивог пољопривредног земљишта | C50: 1600000 | H50: 1600000 | I50: =H50/H135*100 -> 0.1514248128
A51: 714548 | B51: Naknade za supstance koje o{te}uju oznski omota~ i nak.za pl.kese | H51: 0 | I51: =H51/H136*100 -> 0
A52: 714550 | B52: Koncesione naknade i boravisne takse | C52: =C53 -> 100000 | D52: =D53 -> 0 | F52: 0 | G52: 0 | H52: 100000 | I52: =H52/H135*100 -> 0.009464050803
A53: 714552 | B53: Боравишна такса | C53: 100000 | H53: 100000 | I53: =H53/H135*100 -> 0.009464050803
A54: 714560 | B54: Op{tinske i gradske naknade | C54: =C55 -> 5000000 | D54: =D55 -> 0 | F54: 0 | G54: 0 | H54: 5000000 | I54: =H54/H135*100 -> 0.4732025402
A55: 714562 | B55: Посебна накнада за заштиту и унапређење животне средине | C55: 5000000 | H55: 5000000 | I55: =H55/H135*100 -> 0.4732025402
A56: 714570 | B56: Op{tinske i gradske komunalne naknade | C56: =C57 -> 200000 | D56: =D57 -> 0 | F56: 0 | G56: 0 | H56: 200000 | I56: =H56/H135*100 -> 0.01892810161
A57: 714572 | B57: Комунална такса за држање средстава за игру („забавне игре“) | C57: 200000 | H57: 200000 | I57: =H57/H135*100 -> 0.01892810161
A58: 716000 | B58: Drugi porezi | C58: =C59 -> 27000000 | D58: =D59 -> 0 | F58: 0 | G58: 0 | H58: 27000000 | I58: =H58/H135*100 -> 2.555293717
A59: 716110 | B59: Komunalna taksa na firmu | C59: =C60 -> 27000000 | D59: 0 | F59: 0 | G59: 0 | H59: 27000000 | I59: =H59/H135*100 -> 2.555293717
A60: 716111 | B60: Комунална такса за истицање фирме на пословном простору | C60: 27000000 | H60: 27000000 | I60: =H60/H135*100 -> 2.555293717
A61: 731000 | B61: Донације од иностраних држава | C61: =C62 -> 0 | D61: =D62 -> 4700000 | F61: =F62+F66 -> 0 | G61: 0 | H61: =SUM(C61:G61) -> 4700000 | I61: =H61/H135*100 -> 0.4448103877
A62: 731100 | B62: Текуће донације од иностраних држава | C62: =C63 -> 0 | D62: 4700000 | F62: =F63+F64+F65 -> 0 | G62: 0 | H62: =SUM(C62:G62) -> 4700000 | I62: =H62/H135*100 -> 0.4448103877
A63: 731151 | B63: Текуће донације од иностраних држава у корист нивоа општина | D63: 4700000 | H63: =SUM(C63:G63) -> 4700000 | I63: =H63/H135*100 -> 0.4448103877
A64: 733000 | B64: Transferi od drugih nivoa vlasti | C64: =C65+C69 -> 391927698 | D64: =D65+D69 -> 148930000 | F64: 0 | G64: 0 | H64: 540857698 | I64: =H64/H135*100 -> 51.18704731
A65: 733150 | B65: Teku}i transferi od drugih nivoa vlasti u korist nivoa op{tina | C65: =C66+C67+C68 -> 391927698 | D65: =D66+D67+D68 -> 33930000 | F65: 0 | G65: 0 | H65: 425857698 | I65: =H65/H135*100 -> 40.30338889
A66: 733151 | B66: Ненаменски трансфери од Републике у корист нивоа општина | C66: 391927698 | H66: 391927698 | I66: =H66/H135*100 -> 37.09223645
A67: 733152 | B67: Други текући трансфери од Републике у корист нивоа општина | D67: 8200000 | H67: 8200000 | I67: =H67/H135*100 -> 0.7760521658
A68: 733154 | B68: Текући наменски трансфери, у ужем смислу, од Републике у корист нивоа општина | D68: 25730000 | H68: 25730000 | I68: =H68/H135*100 -> 2.435100272
A69: 733250 | B69: Kapitalni transferi od drugih nivoa vlasti u korist nivoa op{tina | C69: =C70 -> 0 | D69: =D70 -> 115000000 | F69: 0 | G69: 0 | H69: 115000000 | I69: =H69/H135*100 -> 10.88365842
A70: 733251 | B70: Капитални трансфери од других нивоа власти у корист нивоа општина | D70: 115000000 | H70: 115000000 | I70: =H70/H135*100 -> 10.88365842
A71: 741000 | B71: Prihodi od imovine | C71: =C72+C74+C79+C76 -> 73150000 | D71: =D72+D74+D79+D76 -> 0 | F71: 0 | G71: 0 | H71: =C71+D71+E71+F71 -> 73150000 | I71: =H71/H135*100 -> 6.922953162
A72: 741150 | B72: Kamate na sredstva konsolidovanog ra~una trezora op{tina | C72: =C73 -> 0 | D72: =D73 -> 0 | F72: 0 | G72: 0 | H72: 0 | I72: =H72/H135*100 -> 0
A73: 741151 | B73: Приходи буџета општине од камата на средства консолидованог рачуна трезора укључена у депозит банака | H73: 0 | I73: =H73/H135*100 -> 0
A74: 741410 | B74: Prihod od imovine | C74: =C75 -> 0 | D74: =D75 -> 0 | F74: 0 | H74: 0 | I74: =C74/C135*100 -> 0
A75: 741411 | B75: Приход од имовине који припада имаоцима полисе осигурања | H75: =C75+D75+E75+F75 -> 0 | I75: =C75/C135*100 -> 0
A76: 741520 | B76: Накнада за коришћење шумског и пољопривредног земљишта | C76: =C77+C78 -> 500000 | D76: =D77+D78 -> 0 | F76: 0 | G76: 0 | H76: 500000 | I76: =H76/H135*100 -> 0.04732025402
A77: 741522 | B77: Sredstva ostvarena od davawa u zakup poqoprivrednog zemqi{ta, odnosno poqoprivrednog objekta u dr`avnoj svojini | C77: 50000 | H77: 50000 | I77: =H77/H135*100 -> 0.004732025402
A78: 741526 | B78: Naknada za kori{}ewe {uma i {umskog zemqi{ta | C78: 450000 | H78: 450000 | I78: =H78/H135*100 -> 0.04258822861
A79: 741530 | B79: Naknada za kori{}ewe prostora i gra|evinskog zemqi{ta | C79: =C80+C81+C82+C83+C85+C84 -> 72650000 | D79: =D80+D81+D82+D83+D85 -> 0 | F79: 0 | G79: 0 | H79: 72650000 | I79: =H79/H135*100 -> 6.875632908
A80: 741531 | B80: Комунална такса за коришћење простора на јавним површинама или испред пословног простора у пословне сврхе, осим ради продаје штампе, књига и других публикација, производа старих и уметничких заната и домаће радиности | C80: 67800000 | H80: 67800000 | I80: =H80/H135*100 -> 6.416626444
A81: 741532 | B81: Комунална такса за коришћење простора за паркирање друмских моторних и прикључних возила на уређеним и обележеним местима | H81: 0 | I81: =H81/H135*100 -> 0
A82: 741533 | B82: Комунална такса за коришћење слободних површина за кампове, постављање шатора или друге облике привременог коришћења | C82: 50000 | H82: 50000 | I82: =H82/H135*100 -> 0.004732025402
A83: 741534 | B83: Накнада за коришћење грађевинског земљишта | H83: 0 | I83: =H83/H136*100 -> 0
A84: 741534 | B84: Naknada za kori{}ewe gradskog gra|evinskog zemwi{ta | C84: 4500000 | H84: =SUM(C84:G84) -> 4500000 | I84: =H84/H135*100 -> 0.4258822861
A85: 741535 | B85: Комунална такса за заузеће јавне површине грађевинским материјалом | C85: 300000 | H85: 300000 | I85: =H85/H135*100 -> 0.02839215241
A86: 741542 | B86: Накнада за коришћење природног лековитог фактора | H86: 0 | I86: =C86/C135*100 -> 0
A87: 741560 | B87: Накнада за воде | H87: 0 | I87: =C87/C135*100 -> 0
A88: 742000 | B88: Prihodi od prodaje dobara i usluga | C88: =C91+C99+C104+C89+C106 -> 48210000 | D88: =D91+D99+D104+D89 -> 0 | F88: 0 | G88: 0 | H88: =C88+D88+E88+F88 -> 48210000 | I88: =H88/H135*100 -> 4.562618892
A89: 742120 | B89: Prihodi od prodaje dobara i usluga ili zakupa od strane tr`i{nih organizacija u korist nivoa Republike | C89: =C90 -> 0 | D89: =D90 -> 0 | F89: 0 | G89: 0 | H89: 0 | I89: =H89/H135*100 -> 0
A90: 742126 | B90: Накнада конверзије права у корист нивоа Republike | H90: 0 | I90: =H90/H135*100 -> 0
A91: 742150 | B91: Prihodi od prodaje dobara i usluga ili zakupa od strane tr`i{nih organizacija u korist nivoa op{tina | C91: =C92+C94+C95+C96+C97+C93+C98 -> 18610000 | D91: =D92+D94+D95+D96+D97+D93+D98 -> 0 | E91: 0 | F91: 0 | G91: 0 | H91: 18610000 | I91: =H91/H135*100 -> 1.761259854
A92: 742152 | B92: Приходи од davawa u zakup, odnosno na kori{}ewe nepokretnosti u dr`avnoj svojini koje koriste op{tine i indirektni korisnici wihovog buxeta | H92: 0 | I92: =C92/C135*100 -> 0
A93: 742152 | B93: Приходи од davawa u zakup, odnosno na kori{}ewe nepokretnosti u dr`avnoj svojini koje koriste op{tine i indirektni korisnici wihovog buxeta | H93: =C93+D93+E93+F93 -> 0 | I93: =H93/H135*100 -> 0
A94: 742153 | B94: Приходи од закупнине за грађевинско земљиште у корист нивоа општина | C94: 1800000 | H94: 1800000 | I94: =H94/H135*100 -> 0.1703529145
A95: 742154 | B95: Накнада по основу конверзије права коришћења у право својине у корист нивоа општине | C95: 50000 | H95: 50000 | I95: =H95/H135*100 -> 0.004732025402
A96: 742155 | B96: Приходи од давања у закуп, односно на коришћење непокретности у општинској својини које користе општине и индиректни корисници њиховог буџета | C96: 9140000 | H96: 9140000 | I96: =H96/H135*100 -> 0.8650142434
A97: 742156 | B97: Prihodi ostvareni po osnovu pru`awa usluga boravka dece u pred{kolskim ustanovama u korist nivoa op{tina | H97: 0 | I97: =H97/H136*100 -> 0
A98: 742156 | B98: Prihodi ostvareni po osnovu pru`awa usluga boravka dece u pred{kolskim ustanovama u korist nivoa op{tina | C98: 7620000 | H98: 7620000 | I98: =H98/H135*100 -> 0.7211606712
A99: 742250 | B99: Takse u korist nivoa op{tina | C99: =C100+C101+C102+C103 -> 29500000 | D99: =D100+D101+D102+D103 -> 0 | F99: 0 | G99: 0 | H99: 29500000 | I99: =H99/H135*100 -> 2.791894987
A100: 742251 | B100: Општинске административне таксе | C100: 6500000 | H100: 6500000 | I100: =H100/H135*100 -> 0.6151633022
A101: 742252 | B101: Накнада за обавезни здравствени преглед биља | H101: 0 | I101: =C101/C135*100 -> 0
A102: 742253 | B102: Накнада за уређивање грађевинског земљишта | C102: 16500000 | H102: 16500000 | I102: =H102/H135*100 -> 1.561568382
A103: 742255 | B103: Такса за озакоњење објеката | C103: 6500000 | H103: 6500000 | I103: =H103/H135*100 -> 0.6151633022
A104: 742350 | B104: Prihodi op{tinskih organa od sporedne prodaje dobara i usluga koje vr{e dr`avne netr`i{ne jedinice | C104: =C105 -> 0 | D104: =D105 -> 0 | F104: 0 | G104: 0 | H104: 0 | I104: =H104/H135*100 -> 0
A105: 742351 | B105: Приходи koji svojom delatno{}u ostvare organi i organizacije op{tina | H105: 0 | I105: =H105/H135*100 -> 0
A106: 742370 | B106: Prihodi indirektnih korisnika buxeta lokalne samouprave koji se ostvaruju dodatnim aktivnostima | C106: =C107 -> 100000 | H106: =SUM(C106:G106) -> 100000 | I106: =H106/H135*100 -> 0.009464050803
A107: 742372 | B107: Prihodi indirektnih korisnika buxeta lokalne samouprave koji se ostvaruju dodatnim aktivnostima | C107: 100000 | H107: =SUM(C107:G107) -> 100000 | I107: =H107/H135*100 -> 0.009464050803
A108: 743000 | B108: Nov~ane kazne i oduzeta imovinska korist | C108: =C109+C111+C119 -> 11680000 | D108: =D109+D111 -> 0 | F108: 0 | G108: 0 | H108: 11680000 | I108: =H108/H135*100 -> 1.105401134
A109: 743320 | B109: Prihodi od nov~anih kazni za prekr{aje u korist nivoa Republike | C109: =C110 -> 10930000 | D109: =D110 -> 0 | F109: 0 | G109: 0 | H109: 10930000 | I109: =H109/H135*100 -> 1.034420753
A110: 743324 | B110: Приходи од новчаних казни за прекршаје, предвиђене прописима о безбедности саобраћаја на путевима | C110: 10930000 | H110: 10930000 | I110: =H110/H135*100 -> 1.034420753
A111: 743350 | B111: Приходи од новчаних казни izre~enih у прекршајном поступку за прекршаје прописане актом скупштине општине | C111: =C112+C118 -> 250000 | D111: =D112 -> 0 | F111: 0 | G111: 0 | H111: 250000 | I111: =H111/H135*100 -> 0.02366012701
A112: 743351 | B112: Приходи од новчаних казни изрe~ених у прекршајном поступку за прекршаје прописане актом скупштине општине | C112: 200000 | H112: 200000 | I112: =H112/H135*100 -> 0.01892810161
A113: 744000 | B113: Dobrovoqni transferi od fizi~kih i pravnih lica | C113: =C114+C116 -> 0 | D113: =D114+D116 -> 0 | F113: 0 | H113: 0 | I113: =H113/H136*100 -> 0
A114: 744150 | B114: Teku}i dobrovoqni transferi od fizi~kih i pravnih lica u korist nivoa op{tina | C114: =C115 -> 0 | D114: =D115 -> 0 | F114: 0 | H114: 0
A115: 744151 | B115: Текући добровољни трансфери од физичких и правних лица у корист нивоа op{tina | H115: 0
A116: 744250 | B116: Kapitalni dobrovoqni transferi od fizi~kih i pravnih lica u korist nivoa op{tina | C116: =C117 -> 0 | D116: =D117 -> 0 | F116: 0 | H116: 0
A117: 744251 | B117: Капитални добровољни трансфери од физичких и правних лица у корист нивоа op{tina | H117: 0
A118: 743353 | B118: Prihodi od mandatnih kazni i kazni izre~enih u upravnom postupku u korist nivoa op{tine | C118: 50000 | H118: 50000 | I118: =H118/H135*100 -> 0.004732025402
A119: 743920 | B119: Prihodi od poreskog duga 5% na dan prinudne naplate LPA | C119: =C120 -> 500000 | H119: =SUM(C119:G119) -> 500000 | I119: =H119/H135*100 -> 0.04732025402
A120: 743924 | B120: Prihodi od poreskog duga 5% na dan prinudne naplate LPA | C120: =500000 -> 500000 | H120: =SUM(C120:G120) -> 500000 | I120: =H120/H135*100 -> 0.04732025402
A121: 745000 | B121: Me{oviti i neodre|eni prihodi | C121: =C122 -> 9082302 | D121: =D122 -> 0 | F121: 0 | G121: 0 | H121: 9082302 | I121: =H121/H135*100 -> 0.8595536754
A122: 745150 | B122: Me{oviti i neodre|eni prihodi u korist nivoa op{tina | C122: =C123+C124 -> 9082302 | D122: =D123+D124 -> 0 | F122: 0 | G122: 0 | H122: 9082302 | I122: =H11/H135*100 -> 0.6814116578
A123: 745151 | B123: Остали приходи у корист нивоа општина | C123: 9082302 | H123: 9082302 | I123: =H123/H135*100 -> 0.8595536754
A124: 745152 | B124: Закупнина за стан у државној својини у корист нивоа општина | H124: 0 | I124: =C124/C135*100 -> 0
A125: 772000 | B125: Меморандумске ставке за рефундацију расхода иѕ предходне године | C125: =C126 -> 0 | D125: =D126 -> 0 | F125: 0 | G125: 0 | H125: 0 | I125: =H125/H135*100 -> 0
A126: 772110 | B126: Меморандумске ставке за рефундацију расхода иѕ предходне године | C126: =C127 -> 0 | D126: 0 | F126: 0 | G126: 0 | H126: 0 | I126: =H126/H135*100 -> 0
A127: 772111 | B127: Меморандумске ставке за рефундацију расхода иѕ предходне године | H127: 0 | I127: =H127/H135*100 -> 0
A128: 791000 | B128: Приходи из буџета | C128: =C129 -> 0 | D128: =D129 -> 0 | F128: 0 | G128: 0 | H128: 0 | I128: =H128/H135*100 -> 0
A129: 791110 | B129: Приходи из буџета | C129: =C130 -> 0 | D129: 0 | F129: 0 | G129: 0 | H129: 0 | I129: =H129/H135*100 -> 0
A130: 791111 | B130: Приходи из буџета | D130: =20000000-20000000 -> 0 | H130: =C130+D130+E130+G130 -> 0 | I130: =H130/H135*100 -> 0
A131: 811000 | B131: Primawa od prodaje osnovnih sredstava | C131: =C132 -> 300000 | D131: =D132 -> 0 | F131: 0 | G131: 0 | H131: 300000 | I131: =H131/H135*100 -> 0.02839215241
A132: 811150 | B132: Primawa od prodaje nepokretnosti u korist nivoa op{tina | C132: =C134+C133 -> 300000 | D132: =D134 -> 0 | F132: =F134 -> 0 | G132: =G134 -> 0 | H132: 300000 | I132: =H132/H135*100 -> 0.02839215241
A133: 811152 | B133: Prihodi od prodaje stanova u korist nivoa op{tine | H133: =SUM(C133:G133) -> 0 | I133: =H133/H136*100 -> 0
A134: 811153 | B134: Примања од отплате станова у корист нивоа општина | C134: 300000 | H134: 300000 | I134: =H134/H135*100 -> 0.02839215241
B135: UKUPNO TEKU]I PRIHODI I PRIMAWA | C135: =C6+C27+C41+C58+C64+C71+C88+C108+C125+C128+C131+C121 -> 903000000 | D135: =D6+D27+D41+D58+D64+D71+D88+D108+D113+D125+D128+D131+D121+D61 -> 153630000 | E135: =E6+E27+E41+E58+E64+E71+E88+E108+E113+E125+E128+E131+E121+E61 -> 0 | F135: =F6+F27+F41+F58+F64+F71+F88+F108+F113+F125+F128+F131+F121 -> 0 | G135: =G6+G27+G41+G58+G64+G71+G88+G108+G113+G125+G128+G131+G121 -> 0 | H135: =C135+D135+E135+F135+G135 -> 1056630000 | I135: =(C135+D135+E135+G135)/H135*100 -> 100
B136: UKUPNO PRENETA SREDSTVA TEKU]I PRIHODI I PRIMAWA | C136: =C135+C4 -> 906833520 | D136: 153630000 | E136: 0 | F136: 0 | G136: 0 | H136: 1060463520 | I136: =(C136+D136+E136+G136)/H136*100 -> 100

Sheet Функ.клас
A2: ^lan 5.
A3: Izdaci buxeta, po funkcionalnoj klasifikaciji, utvr|eni su i raspore|eni u slede}im iznosima:
A5: Функције | B5: Функционална класификација | C5: Средства из буџета | D5: Структура % | E5: Средства из осталих извора | F5: Укупна средства
A6: 1 | B6: 2 | C6: 3 | D6: 4 | E6: 5 | F6: 6
A7: 000 | B7: СОЦИЈАЛНА ЗАШТИТА | C7: =SUBTOTAL(9,C8:C9) -> 22790000 | D7: =C7/$C$57*100 -> 2.467839044 | E7: =SUBTOTAL(9,E8:E9) -> 6250000 | F7: =SUBTOTAL(9,F8:F9) -> 29040000
A8: 070 | B8: Социјална помоћ угроженом становништву, некласификована на другом месту | C8: 10540000 | D8: 1.14133495 | E8: 3200000 | F8: =C8+E8 -> 13740000
A9: 090 | B9: Социјална заштита некласификована на другом месту | C9: 12250000 | D9: 1.326504093 | E9: 3050000 | F9: =C9+E9 -> 15300000
A10: 100 | B10: ОПШТЕ ЈАВНЕ УСЛУГЕ | C10: =SUBTOTAL(9,C11:C14) -> 279707600 | D10: 30.28843072 | F10: =SUBTOTAL(9,F11:F14) -> 279707600
A11: 110 | B11: Извршни законодавни органи, финансијски и фискални послови и спољни послови | C11: =SUBTOTAL(9,C12) -> 37420000 | D11: 4.052063932 | E11: =SUBTOTAL(9,E12) -> 0 | F11: =SUBTOTAL(9,F12) -> 37420000
A12: 111 | B12: Извршни и законодавни органи | C12: 37420000 | D12: 4.052063932 | F12: =C12+E12 -> 37420000
A13: 130 | B13: Опште услуге | C13: 215872600 | D13: 23.37599082 | F13: =C13+E13 -> 215872600 | J13: 100
A14: 160 | B14: Опште јавне услуге некласификоване на другом месту | C14: 26415000 | D14: 2.860375969 | F14: =C14+E14 -> 26415000
A15: 300 | B15: ЈАВНИ РЕД И БЕЗБЕДНОСТ | C15: =SUBTOTAL(9,C16) -> 5541000 | D15: 0.6000129943 | F15: =SUBTOTAL(9,F16) -> 5541000
A16: 330 | B16: Судови | C16: 5541000 | D16: 0.6000129943 | F16: =C16+E16 -> 5541000 | L16: 762961000
A17: 400 | B17: ЕКОНОМСКИ ПОСЛОВИ | C17: =SUBTOTAL(9,C18:C25) -> 169699500 | D17: 18.37608827 | E17: =SUBTOTAL(9,E18:E25) -> 74000000 | F17: =SUBTOTAL(9,F18:F25) -> 243699500
A18: 410 | B18: Општи економски и комерцијални послови и послови по питању рада | C18: =SUBTOTAL(9,C19) -> 25000000 | D18: 2.707151211 | E18: =SUBTOTAL(9,E19) -> 0 | F18: =SUBTOTAL(9,F19) -> 25000000
A19: 411 | B19: Општи економски и комерцијални послови | C19: 25000000 | D19: 2.707151211 | F19: =C19+E19 -> 25000000
A20: 420 | B20: Пољопривреда, шумарство, лов и риболов | C20: =SUBTOTAL(9,C21) -> 22400000 | D20: 2.425607485 | E20: =SUBTOTAL(9,E21) -> 0 | F20: =SUBTOTAL(9,F21) -> 22400000
A21: 421 | B21: Пољопривреда | C21: 22400000 | D21: 2.425607485 | F21: =C21+E21 -> 22400000
A22: 450 | B22: Саобраћај | C22: =SUBTOTAL(9,C23) -> 113273000 | D22: 12.26588556 | E22: =SUBTOTAL(9,E23) -> 74000000 | F22: =SUBTOTAL(9,F23) -> 187273000
A23: 451 | B23: Друмски саобраћај | C23: 113273000 | D23: 12.26588556 | E23: 74000000 | F23: =C23+E23 -> 187273000
A24: 470 | B24: Остале делатности | C24: =SUBTOTAL(9,C25) -> 9026500 | D24: 0.9774440161 | E24: =SUBTOTAL(9,E25) -> 0 | F24: =SUBTOTAL(9,F25) -> 9026500
A25: 473 | B25: Туризам | C25: 9026500 | D25: 0.9774440161 | F25: =C25+E25 -> 9026500
A26: 500 | B26: ЗАШТИТА ЖИВОТНЕ СРЕДИНЕ | C26: =SUBTOTAL(9,C27:C28) -> 21350000 | D26: 2.311907134 | E26: =SUBTOTAL(9,E27:E28) -> 10000000 | F26: =SUBTOTAL(9,F27:F28) -> 31350000
A27: 550 | B27: Заштита животне средине - истраживање и развој | C27: 8450000 | D27: 0.9150171092 | F27: =C27+E27 -> 8450000
A28: 560 | B28: Заштита животне средине некласификована на другом месту | C28: 12900000 | D28: 1.396890025 | E28: 10000000 | F28: =C28+E28 -> 22900000
A29: 600 | B29: ПОСЛОВИ СТАНОВАЊА И ЗАЈЕДНИЦЕ | C29: =SUBTOTAL(9,C30:C33) -> 87569000 | D29: 9.482500975 | F29: =SUBTOTAL(9,F30:F33) -> 118569000
A30: 620 | B30: Развој заједнице | C30: 28597000 | D30: 3.096656127 | E30: 5000000 | F30: =C30+E30 -> 33597000
A31: 630 | B31: Водоснабдевање | C31: 18622000 | D31: 2.016502794 | E31: 11000000 | F31: =C31+E31 -> 29622000
A32: 640 | B32: Улична расвета | C32: 27000000 | D32: 2.923723307 | E32: 15000000 | F32: =C32+E32 -> 42000000
A33: 660 | B33: Послови становања и заједнице некласификоване на другом месту | C33: 13350000 | D33: 1.445618746 | F33: =C33+E33 -> 13350000
A39: Функције | B39: Функционална класификација | C39: Средства из буџета | D39: Структура % | E39: Средства из осталих извора | F39: Укупна средства
A40: 1 | B40: 2 | C40: 3 | D40: 4 | E40: 5 | F40: 6
A42: 700 | B42: ЗДРАВСТВО | C42: =SUBTOTAL(9,C43:C44) -> 23000000 | D42: =C42/$C$57*100 -> 2.490579114 | E42: =SUBTOTAL(9,E43:E44) -> 0 | F42: =SUBTOTAL(9,F43:F44) -> 23000000
A43: 721 | B43: Опште медицинске услуге | C43: 400000 | D43: 0.04331441937 | F43: =C43+E43 -> 400000
A44: 740 | B44: Услуге јавног здравства | C44: 22600000 | D44: 2.447264694 | F44: =C44+E44 -> 22600000
A45: 800 | B45: РЕКРЕАЦИЈА, СПОРТ, КУЛТУРА И ВЕРЕ | C45: =SUBTOTAL(9,C46:C50) -> 92588200 | D45: 10.02601031 | E45: =SUBTOTAL(9,E46:E50) -> 3833520 | F45: =SUBTOTAL(9,F46:F50) -> 96421720
A46: 810 | B46: Услуге рекреације и спорта | C46: 35416200 | D46: 3.835080348 | F46: =C46+E46 -> 35416200
A47: 820 | B47: Услуге културе | C47: 43542000 | D47: 4.714991121 | E47: 3833520 | F47: =C47+E47 -> 47375520
A48: 830 | B48: Услуге емитовања и штампања | C48: 5000000 | D48: 0.5414302421 | F48: =C48+E48 -> 5000000
A49: 840 | B49: Verske i ostale usluge zajednice | C49: 3300000 | D49: 0.3573439598 | F49: =C49+E49 -> 3300000
A50: 860 | B50: Rekreacija, sport, kultura i vere, neklasifikovano na drugom mestu | C50: 5330000 | D50: 0.5771646381 | F50: =C50+E50 -> 5330000
A51: 900 | B51: ОБРАЗОВАЊЕ | C51: =SUBTOTAL(9,C52:C56) -> 221234700 | D51: 23.95663144 | E51: =SUBTOTAL(9,E52:E56) -> 11900000 | F51: 233134700
A52: 910 | B52: Предшколско и основно образовање | C52: =SUBTOTAL(9,C53:C54) -> 175941500 | D52: 19.05200979 | E52: =SUBTOTAL(9,E53:E54) -> 4700000 | F52: =SUBTOTAL(9,F53:F54) -> 180641500
A53: 911 | B53: Предшколско образовање | C53: 110543000 | D53: 11.97026465 | F53: =C53++E53 -> 110543000
A54: 912 | B54: Основно образовање | C54: 65398500 | D54: 7.081745138 | E54: 4700000 | F54: =C54+E54 -> 70098500
A55: 920 | B55: Средње образовање | C55: 24974500 | D55: 2.704389916 | F55: =C55+E55 -> 24974500
A56: 960 | B56: Помоћне услуге образовању | C56: 20318700 | D56: 2.200231732 | E56: 7200000 | F56: =C56+E56 -> 27518700
B57: УКУПНО | C57: =SUBTOTAL(9,C7:C56)-3 -> 923480000 | D57: 100 | E57: =SUBTOTAL(9,E7:E56)-5 -> 136983520 | F57: =SUBTOTAL(9,F7:F56)-6 -> 1060463520
A60: II ПОСЕБАН ДЕО
A62: ^lan 6.
A65: Ukupni rashodi i izdaci, ukqu~uju}i rashode za otplatu glavnice duga, u iznosu od 1.060.463.520,00 динара, финансирани из свих извора финансирања распоређују се по корисницима и врстама издатака.

Sheet Прог.актив.
A1: ^lan 7.
A2: Sredstva buxeta u iznosu od 923.480.000,00 dinara, sredstva iz осталих извора u iznosu od 136.983.520,00 dinara, utvr|eni su i raspore|eni po programskoj klasifikaciji u 2019. godinи:
A4: Шифра | C4: Назив | D4: Средства из буџета | E4: Средства из осталих извора | F4: Укупна средства | G4: Надлежни орган
A5: Програм | B5: Програмска активност/ Пројекат
A6: 1 | B6: 2 | C6: 3 | D6: 4 | E6: 5 | F6: 6 | G6: 7
A7: 1101 | C7: Програм 1. Локални развој и просторно планирање | D7: =SUBTOTAL(9,D8:D9) -> 41797000 | E7: =SUBTOTAL(9,E8:E8) -> 0 | F7: =SUBTOTAL(9,F8:F9) -> 41797000
B8: 1101-0001 | C8: Стратешко, просторно и урбанистичко планирање | D8: 41497000 | F8: =D8+E8 -> 41497000 | G8: Општинска управа
B9: 1101-0002 | C9: Спровођење урбанистичких и просторних планова | D9: 300000 | F9: =D9+E9 -> 300000 | G9: Општинска управа
A10: 1102 | C10: Програм 2. Комунална делатност | D10: =SUBTOTAL(9,D11:D17) -> 60772000 | E10: =SUBTOTAL(9,E11:E16) -> 16000000 | F10: =SUBTOTAL(9,F11:F17) -> 76772000
B11: 1102-0001 | C11: Јавна расвета | D11: 20000000 | F11: =D11+E11 -> 20000000 | G11: Општинска управа
B12: 1102-0002 | C12: Уређење и одржавање зеленила | D12: 1350000 | F12: 1350000 | G12: Општинска управа
B13: 1102-0003 | C13: Јавна хигијена | D13: 12000000 | F13: 12000000 | G13: Општинска управа
B14: 1102-0004 | C14: Зоохигијена | D14: 1800000 | F14: 1800000 | G14: Општинска управа
B15: 1102-0005 | C15: Уређивање, одржавање и коришћење пијаца | E15: 5000000 | F15: 5000000 | G15: Општинска управа
B16: 1102-0008 | C16: Водоснабдевање | D16: 18622000 | E16: 11000000 | F16: 29622000 | G16: Општинска управа
B17: 1102-01 | C17: Изградња далековода за трафо станицу у селу Билинце | D17: 7000000 | F17: 7000000 | G17: Општинска управа
A18: 1501 | C18: Програм 3. Локални економски развој | D18: =SUBTOTAL(9,D19:D20) -> 25000000 | E18: =SUBTOTAL(9,E19:E20) -> 0 | F18: 25000000
B19: 1501-0002 | C19: Стручна пракса | D19: 15000000 | F19: =D19+E19 -> 15000000 | G19: Општинска управа
B20: 1501-0003 | C20: Подстицај за развој предузетништва | D20: 10000000 | F20: =D20+E20 -> 10000000 | G20: Општинска управа/KLER
A21: 1502 | C21: Програм 4. Развој туризма | D21: =SUBTOTAL(9,D22:D22) -> 9026500 | E21: =SUBTOTAL(9,E22:E22) -> 0 | F21: =SUBTOTAL(9,F22:F22) -> 9026500
B22: 1502-0001 | C22: Управљањем развојем туризма | D22: 9026500 | F22: =D22+E22 -> 9026500 | G22: Туристичка организација
A23: 0101 | C23: Програм 5. Развој пољопривреде | D23: =SUBTOTAL(9,D24:D24) -> 22400000 | E23: =SUBTOTAL(9,E24:E24) -> 0 | F23: =SUBTOTAL(9,F24:F24) -> 22400000
B24: 0101-0002 | C24: Мере подршке руралном развоју | D24: 22400000 | F24: =D24+E24 -> 22400000 | G24: ОU/Odeqewe za privredu
A25: 0401 | C25: Програм 6. Заштита животне средине | D25: =SUBTOTAL(9,D26:D29) -> 21350000 | E25: =SUBTOTAL(9,E26:E29) -> 10000000 | F25: =SUBTOTAL(9,F26:F29) -> 31350000
B26: 0401-0001 | C26: Управљање заштитом животне средине | D26: 8450000 | F26: =D26+E26 -> 8450000 | G26: Општинска управа
B27: 0401-0004 | C27: Управљање отпадним водама | D27: 11400000 | F27: =D27+E27 -> 11400000 | G27: Општинска управа
B28: 0401-0005 | C28: Управљање комуналним отпадом | E28: 10000000 | F28: =D28+E28 -> 10000000 | G28: Општинска управа
B29: 0401-0006 | C29: Одрживо управљање осталим врстама отпада | D29: 1500000 | F29: =D29+E29 -> 1500000 | G29: Општинска управа
A30: 0701 | C30: Програм 7. Путна инфраструктура | D30: =SUBTOTAL(9,D31:D106) -> 113273000 | E30: =SUBTOTAL(9,E31:E106) -> 74000000 | F30: =SUBTOTAL(9,F31:F106) -> 187273000
B31: 0701-01 | C31: =VLOOKUP(B31,'Troškovi 2019'!C295:G742,5,FALSE) -> Асфалтирање улице код Данија у Бујановцу | D31: 1150000 | F31: =D31+E31 -> 1150000 | G31: Општинска управа
B32: 0701-02 | C32: =VLOOKUP(B32,'Troškovi 2019'!C296:G749,5,FALSE) -> Асфалтирање улице код Ферида у Бујановцу | D32: 500000 | F32: 500000 | G32: Општинска управа
B33: 0701-03 | C33: =VLOOKUP(B33,'Troškovi 2019'!C298:G750,5,FALSE) -> Асфалтирање улице код џамије у Бујановцу | D33: 950000 | F33: 950000 | G33: Општинска управа
B34: 0701-04 | C34: Афалтирање локалних путева на територији општине Бујановац | D34: 2970000 | E34: 74000000 | F34: 76970000 | G34: Општинска управа
B35: 0701-05 | C35: =VLOOKUP(B35,'Troškovi 2019'!C300:G752,5,FALSE) -> Асфалтирање пута у селу Жужељица до цркве, Л=210м, Б=2,5м | D35: 1020000 | F35: 1020000 | G35: Општинска управа
B36: 0701-06 | C36: =VLOOKUP(B36,'Troškovi 2019'!C301:G753,5,FALSE) -> Асфалтирање улице у селу Жбевац - Махала Нојчини - Рабушчијини, Л=430м, Б=3м | D36: 2980000 | F36: 2980000 | G36: Општинска управа
B37: 0701-07 | C37: =VLOOKUP(B37,'Troškovi 2019'!C302:G754,5,FALSE) -> Крпљење ударних рупа на територији општине Бујановац | D37: 3000000 | F37: =D37+E37 -> 3000000 | G37: Општинска управа
B38: 0701-08 | C38: =VLOOKUP(B38,'Troškovi 2019'!C304:G755,5,FALSE) -> Зимско одржавање путева | D38: 2000000 | F38: 2000000 | G38: Општинска управа
B39: 0701-09 | C39: =VLOOKUP(B39,'Troškovi 2019'!C305:G756,5,FALSE) -> Стручни надзор | D39: 2000000 | F39: 2000000 | G39: Општинска управа
B40: 0701-10 | C40: =VLOOKUP(B40,'Troškovi 2019'!C306:G757,5,FALSE) -> Вертикална и хоризонтална сигнализација | D40: 1200000 | F40: 1200000 | G40: Општинска управа
B41: 0701-11 | C41: =VLOOKUP(B41,'Troškovi 2019'!C307:G758,5,FALSE) -> Текуће поправке и одржавање - Одржавање пружних прелаза | D41: 1200000 | F41: 1200000 | G41: Општинска управа
B42: 0701-12 | C42: =VLOOKUP(B42,'Troškovi 2019'!C308:G759,5,FALSE) -> Асфалтирање улице у Бујановачкој Бањи, Л=230м, Б=6м + тротоар | D42: 5990000 | F42: 5990000 | G42: Општинска управа
B43: 0701-13 | C43: =VLOOKUP(B43,'Troškovi 2019'!C310:G760,5,FALSE) -> Асфалтирање улице Шабан Бајрамовић у Бујановцу | D43: 1500000 | F43: 1500000 | G43: Општинска управа
B44: 0701-14 | C44: =VLOOKUP(B44,'Troškovi 2019'!C311:G761,5,FALSE) -> Асфалтирање улице код Афамо у Бујановцу | D44: 600000 | F44: 600000 | G44: Општинска управа
B45: 0701-15 | C45: =VLOOKUP(B45,'Troškovi 2019'!C312:G762,5,FALSE) -> Асфалтирање улице код Асдрени у Бујановцу | D45: 500000 | F45: 500000 | G45: Општинска управа
B46: 0701-16 | C46: =VLOOKUP(B46,'Troškovi 2019'!C313:G763,5,FALSE) -> Асфалтирање улице код Решата у Бујановцу | D46: 500000 | F46: 500000 | G46: Општинска управа
B47: 0701-17 | C47: =VLOOKUP(B47,'Troškovi 2019'!C314:G764,5,FALSE) -> Асфалтирање улице у Индустријској зони у Бујановцу | D47: 500000 | F47: 500000 | G47: Општинска управа
B48: 0701-18 | C48: =VLOOKUP(B48,'Troškovi 2019'!C315:G764,5,FALSE) -> Асфалтирање улице АЛ ЕУРОПА у Бујановцу | D48: 900000 | F48: 900000 | G48: Општинска управа
B49: 0701-19 | C49: =VLOOKUP(B49,'Troškovi 2019'!C316:G765,5,FALSE) -> Асфалтирање Врбанске улице у Бујановцу | D49: 400000 | F49: 400000 | G49: Општинска управа
B50: 0701-20 | C50: =VLOOKUP(B50,'Troškovi 2019'!C317:G766,5,FALSE) -> Асфалтирање улице код Исмаила у селу Добросин | D50: 300000 | F50: 300000 | G50: Општинска управа
B51: 0701-21 | C51: =VLOOKUP(B51,'Troškovi 2019'!C318:G767,5,FALSE) -> Асфалтирање улице код Боже у Бујановцу | D51: 500000 | F51: 500000 | G51: Општинска управа
B52: 0701-22 | C52: =VLOOKUP(B52,'Troškovi 2019'!C319:G768,5,FALSE) -> Асфалтирање улице у селу Велики Трновац код Буши Гаш | D52: 400000 | F52: 400000 | G52: Општинска управа
B53: 0701-23 | C53: =VLOOKUP(B53,'Troškovi 2019'!C319:G769,5,FALSE) -> Асфалтирање улице у селу Велики Трновац - код Шефика према Турији | D53: 500000 | F53: 500000 | G53: Општинска управа
B54: 0701-24 | C54: =VLOOKUP(B54,'Troškovi 2019'!C319:G770,5,FALSE) -> Асфалтирање улице у селу Велики Трновац - код Даоци | D54: 500000 | F54: 500000 | G54: Општинска управа
B55: 0701-25 | C55: =VLOOKUP(B55,'Troškovi 2019'!C319:G771,5,FALSE) -> Асфалтирање улице у селу Велики Трновац код Л. Гогу | D55: 400000 | F55: 400000 | G55: Општинска управа
B56: 0701-26 | C56: =VLOOKUP(B56,'Troškovi 2019'!C319:G772,5,FALSE) -> Асфалтирање десног прилаза улици Пчињска у Бујановцу, Л=50м, Б=3,5м | D56: 600000 | F56: 600000 | G56: Општинска управа
B57: 0701-27 | C57: =VLOOKUP(B57,'Troškovi 2019'!C319:G773,5,FALSE) -> Наставак асфалтирања паркинга у дворишту цркве у селу Раковац, П=300м2 | D57: 750000 | F57: 750000 | G57: Општинска управа
B58: 0701-28 | C58: =VLOOKUP(B58,'Troškovi 2019'!C320:G774,5,FALSE) -> Реконструкција улице Пчињска у Бујановцу, Л=130м, Б=6м | D58: 1850000 | F58: 1850000 | G58: Општинска управа
B59: 0701-29 | C59: =VLOOKUP(B59,'Troškovi 2019'!C321:G775,5,FALSE) -> Асфалтирање улице у селу Велики Трновац код гробља у Струкарској махали | D59: 600000 | F59: 600000 | G59: Општинска управа
B60: 0701-30 | C60: =VLOOKUP(B60,'Troškovi 2019'!C322:G776,5,FALSE) -> Реконструкција дела улице Јосифа Јањића од раскрснице до подвожњака, Л=175м, Б=3,5м и од подвожњака до цркве, Л=100м, Б=3,3м | D60: 2250000 | F60: 2250000 | G60: Општинска управа
B61: 0701-31 | C61: =VLOOKUP(B61,'Troškovi 2019'!C324:G777,5,FALSE) -> Насипање пута у селу Боровац за Доњу махалу, Л=1,8км, Б=3,5м | D61: 3780000 | F61: 3780000 | G61: Општинска управа
B62: 0701-32 | C62: =VLOOKUP(B62,'Troškovi 2019'!C325:G778,5,FALSE) -> Рад механизације (булдожер, грејдер, ваљак и др.) на поправци сеоских путева у српској заједници | D62: 4000000 | F62: 4000000 | G62: Општинска управа
B63: 0701-33 | C63: =VLOOKUP(B63,'Troškovi 2019'!C326:G779,5,FALSE) -> Насипање пута од села Света Петка до села Дрежница - први део Л=600м, Б=3,5м и други део Л=400м, Б=3,5м | D63: 2590000 | F63: 2590000 | G63: Општинска управа
B64: 0701-34 | C64: =VLOOKUP(B64,'Troškovi 2019'!C327:G780,5,FALSE) -> Насипање пута у селу Узово до куће Слађана Стојановића, Л=800м, Б=3,5м | D64: 1970000 | F64: 1970000 | G64: Општинска управа
B65: 0701-35 | C65: =VLOOKUP(B65,'Troškovi 2019'!C328:G781,5,FALSE) -> Изградња тротоара од села Света петка до села Кленике (обострано) | D65: 4050000 | F65: 4050000 | G65: Општинска управа
B66: 0701-36 | C66: =VLOOKUP(B66,'Troškovi 2019'!C330:G782,5,FALSE) -> Насипање пута за Кочовску махалу у селу Сејаце, Л=1100м, Б=3,5м | D66: 2290000 | F66: 2290000 | G66: Општинска управа
B67: 0701-37 | C67: =VLOOKUP(B67,'Troškovi 2019'!C331:G783,5,FALSE) -> Асфалтирање сокака у улици Карађорђа Петровића, Л=100м, Б=3м | D67: 1000000 | F67: 1000000 | G67: Општинска управа
B68: 0701-38 | C68: =VLOOKUP(B68,'Troškovi 2019'!C332:G784,5,FALSE) -> Асфалтирање сокака у улици Карађорђа Петровића, Л=50м, Б=2,5м | D68: 300000 | F68: 300000 | G68: Општинска управа
B69: 0701-39 | C69: =VLOOKUP(B69,'Troškovi 2019'!C333:G785,5,FALSE) -> Изградња цевастог пропуста на реци у селу Кршевица (ФИ2000/3 реда * 4,5м) | D69: 3500000 | F69: 3500000 | G69: Општинска управа
B70: 0701-40 | C70: =VLOOKUP(B70,'Troškovi 2019'!C334:G786,5,FALSE) -> Изградња потпорног зида на бараљевској реци у селу Кленике, Л=25м, Х=2,5м | D70: 1983000 | F70: 1983000 | G70: Општинска управа
B71: 0701-41 | C71: =VLOOKUP(B71,'Troškovi 2019'!C336:G787,5,FALSE) -> Реконструкција улице Јована Цвијића у Бујановцу | D71: 4000000 | F71: 4000000 | G71: Општинска управа
B72: 0701-42 | C72: =VLOOKUP(B72,'Troškovi 2019'!C337:G788,5,FALSE) -> Асфалтирање улице у селу Велики Трновац код Дугана Центар, Л=170м, Б=4,5м | D72: 1500000 | F72: 1500000 | G72: Општинска управа
B73: 0701-43 | C73: =VLOOKUP(B73,'Troškovi 2019'!C338:G789,5,FALSE) -> Насипање улице шодером у с. Велики Трновац код Сејада | D73: 300000 | F73: 300000 | G73: Општинска управа
B74: 0701-44 | C74: =VLOOKUP(B74,'Troškovi 2019'!C339:G790,5,FALSE) -> Асфалтирање обилазнице у селу Турија према Лучану | D74: 900000 | F74: 900000 | G74: Општинска управа
B75: 0701-45 | C75: =VLOOKUP(B75,'Troškovi 2019'!C340:G791,5,FALSE) -> Асфалтирање улице у селу Лучане код Хисена | D75: 500000 | F75: 500000 | G75: Општинска управа
B76: 0701-46 | C76: =VLOOKUP(B76,'Troškovi 2019'!C341:G792,5,FALSE) -> Асфалтирање улице у селу Лучане код Шахиновита | D76: 500000 | F76: 500000 | G76: Општинска управа
B77: 0701-47 | C77: =VLOOKUP(B77,'Troškovi 2019'!C342:G793,5,FALSE) -> Асфалтирање обилазнице у селу Несалце | D77: 2000000 | F77: 2000000 | G77: Општинска управа
B78: 0701-48 | C78: =VLOOKUP(B78,'Troškovi 2019'!C343:G794,5,FALSE) -> Асфалтирање улице у селу Несалце код Артона | D78: 1000000 | F78: 1000000 | G78: Општинска управа
B79: 0701-49 | C79: =VLOOKUP(B79,'Troškovi 2019'!C344:G795,5,FALSE) -> Асфалтирање улице у селу Несалце код Рахима | D79: 500000 | F79: 500000 | G79: Општинска управа
B80: 0701-50 | C80: =VLOOKUP(B80,'Troškovi 2019'!C345:G796,5,FALSE) -> Асфалтирање улице у селу Несалце код Бесима | D80: 500000 | F80: 500000 | G80: Општинска управа
B81: 0701-51 | C81: =VLOOKUP(B81,'Troškovi 2019'!C346:G797,5,FALSE) -> Асфалтирање улице у селу Летовица код Цуфе | D81: 650000 | F81: 650000 | G81: Општинска управа
B82: 0701-52 | C82: =VLOOKUP(B82,'Troškovi 2019'!C347:G798,5,FALSE) -> Асфалтирање улице у селу Летовица код Ефраима | D82: 500000 | F82: 500000 | G82: Општинска управа
B83: 0701-53 | C83: =VLOOKUP(B83,'Troškovi 2019'!C348:G799,5,FALSE) -> Асфалтирање улице у селу Летовица код Хаџи Авдулаха | D83: 500000 | F83: 500000 | G83: Општинска управа
B84: 0701-54 | C84: =VLOOKUP(B84,'Troškovi 2019'!C354:G800,5,FALSE) -> Изградња парка у селу Велики Трновац код воденице | D84: 5000000 | F84: 5000000 | G84: Општинска управа
B85: 0701-55 | C85: =VLOOKUP(B85,'Troškovi 2019'!C355:G801,5,FALSE) -> Асфалтирање улице у селу Летовица код Зитових | D85: 400000 | F85: 400000 | G85: Општинска управа
B86: 0701-56 | C86: =VLOOKUP(B86,'Troškovi 2019'!C356:G802,5,FALSE) -> Асфалтирање улице у селу Летовица код Џевдета | D86: 600000 | F86: 600000 | G86: Општинска управа
B87: 0701-57 | C87: =VLOOKUP(B87,'Troškovi 2019'!C357:G803,5,FALSE) -> Проширење пута Несалце - Летовица, Л=2,6км, Б=1м | D87: 13000000 | F87: 13000000 | G87: Општинска управа
B88: 0701-58 | C88: =VLOOKUP(B88,'Troškovi 2019'!C358:G804,5,FALSE) -> Асфалтирање сеоског трга у селу Биљача | D88: 500000 | F88: 500000 | G88: Општинска управа
B89: 0701-59 | C89: =VLOOKUP(B89,'Troškovi 2019'!C359:G805,5,FALSE) -> Асфалтирање улице у селу Самољица код Ридвана | D89: 600000 | F89: 600000 | G89: Општинска управа
B90: 0701-60 | C90: =VLOOKUP(B90,'Troškovi 2019'!C360:G806,5,FALSE) -> Асфалтирање улице у селу Брезница код Шемовита | D90: 800000 | F90: 800000 | G90: Општинска управа
B91: 0701-61 | C91: =VLOOKUP(B91,'Troškovi 2019'!C361:G807,5,FALSE) -> Асфалтирање улице у селу Кончуљ код Башкима | D91: 500000 | F91: 500000 | G91: Општинска управа
B92: 0701-62 | C92: =VLOOKUP(B92,'Troškovi 2019'!C362:G808,5,FALSE) -> Асфалтирање улице у селу Кончуљ код Арсима | D92: 300000 | F92: 300000 | G92: Општинска управа
B93: 0701-63 | C93: =VLOOKUP(B93,'Troškovi 2019'!C363:G809,5,FALSE) -> Асфалтирање улице у селу Кончуљ код Арбена | D93: 300000 | F93: 300000 | G93: Општинска управа
B94: 0701-64 | C94: =VLOOKUP(B94,'Troškovi 2019'!C364:G810,5,FALSE) -> Уређење пута у селу Кончуљ код Ћазима | D94: 400000 | F94: 400000 | G94: Општинска управа
B95: 0701-65 | C95: =VLOOKUP(B95,'Troškovi 2019'!C365:G811,5,FALSE) -> Асфалтирање улице у селу Кончуљ код Рахмана | D95: 400000 | F95: 400000 | G95: Општинска управа
B96: 0701-66 | C96: =VLOOKUP(B96,'Troškovi 2019'!C366:G812,5,FALSE) -> Поплочавање улица бетонским плочама у албанској заједници | D96: 6000000 | F96: 6000000 | G96: Општинска управа
B97: 0701-67 | C97: =VLOOKUP(B97,'Troškovi 2019'!C367:G813,5,FALSE) -> Асфалтирање улице у селу Брезница - Муховац - Зарбинце, Л=600м, Б=4м | D97: 2000000 | F97: 2000000 | G97: Општинска управа
B98: 0701-68 | C98: =VLOOKUP(B98,'Troškovi 2019'!C368:G814,5,FALSE) -> Асфалтирање улице код Шуајба у с. Велики Трновац | D98: 500000 | F98: 500000 | G98: Општинска управа
B99: 0701-69 | C99: =VLOOKUP(B99,'Troškovi 2019'!C369:G815,5,FALSE) -> Асфалтирање улице код Феки у с. Несалце | D99: 400000 | F99: 400000 | G99: Општинска управа
B100: 0701-70 | C100: =VLOOKUP(B100,'Troškovi 2019'!C370:G816,5,FALSE) -> Асфалтирање улице код Агима у с. Биљача | D100: 450000 | F100: 450000 | G100: Општинска управа
B101: 0701-71 | C101: =VLOOKUP(B101,'Troškovi 2019'!C371:G817,5,FALSE) -> Асфалтирање улице код Фљорима у с. Самољица | D101: 450000 | F101: 450000 | G101: Општинска управа
B102: 0701-72 | C102: =VLOOKUP(B102,'Troškovi 2019'!C372:G818,5,FALSE) -> Асфалтирање улице код Ментора у с. Летовица | D102: 450000 | F102: 450000 | G102: Општинска управа
B103: 0701-73 | C103: =VLOOKUP(B103,'Troškovi 2019'!C373:G819,5,FALSE) -> Асфалтирање улице код Наипа у Летовици | D103: 450000 | F103: 450000 | G103: Општинска управа
B104: 0701-74 | C104: =VLOOKUP(B104,'Troškovi 2019'!C374:G820,5,FALSE) -> Асфалтирање улице код гробља у Доњој Брезници | D104: 500000 | F104: 500000 | G104: Општинска управа
B105: 0701-75 | C105: =VLOOKUP(B105,'Troškovi 2019'!C375:G821,5,FALSE) -> Реконструкција асфалтирања улице у селу Велики Трновац (од главне трафо-станице до пута у нову махалу) | D105: 1000000 | F105: 1000000 | G105: Општинска управа
B106: 0701-76 | C106: =VLOOKUP(B106,'Troškovi 2019'!C369:G815,5,FALSE) -> Повећање безбедности учесника у саобраћају и смањење броја саобраћајних незгода | D106: 950000 | F106: 950000 | G106: Општинска управа
A107: 2001 | C107: Програм 8. Предшколско васпитање | D107: =SUBTOTAL(9,D108) -> 110543000 | E107: =SUBTOTAL(9,E108) -> 0 | F107: 110543000
B108: 2001-0001 | C108: Функционисање предшколских установа | D108: 110543000 | F108: =D108+E108 -> 110543000 | G108: ПУ "Наша радост"
A109: 2002 | C109: Програм 9. Основно образовање | D109: =SUBTOTAL(9,D110) -> 73364200 | E109: =SUBTOTAL(9,E110) -> 4700000 | F109: 78064200
B110: 2002-0001 | C110: Функционисање основних школа | D110: 73364200 | E110: 4700000 | F110: =D110+E110 -> 78064200 | G110: Општинска управа
A111: 2003 | C111: Програм 10. Средње образовање | D111: =SUBTOTAL(9,D112) -> 37327500 | E111: =SUBTOTAL(9,E112) -> 7200000 | F111: 44527500
B112: 2003-0001 | C112: Функционисање средњих школа | D112: 37327500 | E112: 7200000 | F112: =D112+E112 -> 44527500 | G112: Општинска управа
A113: 0901 | C113: Програм 11. Социјална и дечија заштита | D113: =SUBTOTAL(9,D114:D118) -> 16590000 | E113: =SUBTOTAL(9,E114:E118) -> 6250000 | F113: 22840000
B114: 0901-0001 | C114: Социјалне помоћи | D114: 9500000 | F114: =D114+E114 -> 9500000 | G114: ОU/Centar za soc.rad
B115: 0901-0002 | C115: Прихватилишта, прихватне станице и друге врсте смештаја | D115: 3100000 | F115: =D115+E115 -> 3100000 | G115: Општинска управа
B116: 0901-0005 | C116: Активности ОО Црвеног крста Бујановац | D116: 500000 | F116: =D116+E116 -> 500000 | G116: ОО Црвени крст
B117: 0901-0006 | C117: Подршка деци и породицама са децом | D117: 2950000 | E117: 3050000 | F117: =D117+E117 -> 6000000 | G117: Општинска управа
B118: 0901-0007 | C118: Подршка старијим лицима и/или особама са инвалидитетом | D118: 540000 | E118: 3200000 | F118: =D118+E118 -> 3740000 | G118: Општинска управа
A119: 1801 | C119: Програм 12. Примарна здравствена заштита | D119: =SUBTOTAL(9,D120:D121) -> 23000000 | E119: =SUBTOTAL(9,E120:E121) -> 0 | F119: 23000000
B120: 1801-0001 | C120: Функционисање установа примарне здравствене заштите | D120: 22600000 | F120: =D120+E120 -> 22600000 | G120: OU/DZ/Apoteka
B121: 1801-0002 | C121: Мртвозорство | D121: 400000 | F121: =D121+E121 -> 400000 | G121: ОУ/ДЗ
A122: 1201 | C122: Програм 13. Развој културе | D122: =SUBTOTAL(9,D123:D129) -> 57172000 | E122: =SUBTOTAL(9,E123:E129) -> 0 | F122: =SUBTOTAL(9,F123:F129) -> 57172000
B123: 1201-0001 | C123: Функционисање локалних установа културе | D123: 42842000 | F123: =D123+E123 -> 42842000 | G123: ДУ "Вук Караџић" и Библиотека
B124: 1201-0002 | C124: Јачање културне продукције и уметничког стваралаштва | D124: 5330000 | F124: =D124+E124 -> 5330000 | G124: Општинска управа
B125: 1201-0003 | C125: Унапређење система очувања и представљања културно-историјског наслеђа | D125: 3300000 | F125: =D125+E125 -> 3300000 | G125: Општинска управа
B126: 1201-0004 | C126: Остваривање и унапређивање јавног интереса у области јавног информисања | D126: 5000000 | F126: 5000000 | G126: Општинска управа
B127: 1201-01 | C127: Манифестација вредне руке | D127: 150000 | F127: 150000 | G127: ДУ "Вук Караџић"
B128: 1201-02 | C128: Манифестација најлепше ускршње јаје | D128: 150000 | F128: 150000 | G128: ДУ "Вук Караџић"
B129: 1201-03 | C129: Манифестација културно лето | D129: 400000 | F129: 400000 | G129: ДУ "Вук Караџић"
A130: 1301 | C130: Програм 14. Развој спорта и омладине | D130: =SUBTOTAL(9,D131:D136) -> 35416200 | E130: =SUBTOTAL(9,E131:E134) -> 0 | F130: =SUBTOTAL(9,F131:F136) -> 35416200
B131: 1301-0001 | C131: Подршка локалним спорским организацијама, удружењима и савезима | D131: 10650000 | F131: =D131+E131 -> 10650000 | G131: Општинска управа
B132: 1301-0004 | C132: Функционисање локалних спортских установа | D132: 22056200 | F132: 22056200 | G132: СЦ "Младост"
B133: 1301-0005 | C133: Спровођење омалдинске политике | D133: 800000 | F133: 800000 | G133: Општинска управа
B134: 1301-01 | C134: Асфалтирање спортског терена у дворишту ОШ у селу Мали Трновац | D134: 500000 | F134: 500000 | G134: Општинска управа
B135: 1301-02 | C135: Асфалтирање спортског терена у дворишту ОШ у селу Летовица | D135: 700000 | F135: 700000 | G135: Општинска управа
B136: 1301-03 | C136: Асфалтирање игралишта у селу Бараљевац | D136: 710000 | F136: 710000 | G136: Општинска управа
A137: 0602 | C137: Програм 15. Локална самоуправа | D137: =SUBTOTAL(9,D138:D144) -> 239028600 | E137: =SUBTOTAL(9,E138:E144) -> 0 | F137: 239028600
B138: 0602-0001 | C138: Подршка раду извршних органа власти и скупштине | D138: 207770000 | F138: =D138+E138 -> 207770000 | G138: Општинска управа
B139: 0602-0002 | C139: Функционисање месних заједница | D139: 6970000 | F139: =D139+E139 -> 6970000 | G139: Општинска управа/Месне заједнице
B140: 0602-0004 | C140: Правобранилаштво општине Бујановац | D140: 5541000 | F140: =D140+E140 -> 5541000 | G140: OJP
B141: 0602-0007 | C141: Функционисање националних савета националних мањина | D141: 6200000 | F141: 6200000 | G141: Општинска управа
B142: 0602-0009 | C142: Текућа буџетска резерва | D142: 10197600 | F142: 10197600 | G142: Општинска управа
B143: 0602-0010 | C143: Стална буџетска резерва | D143: 500000 | F143: 500000 | G143: Општинска управа
B144: 0602-0014 | C144: Ванредне ситуације | D144: 1850000 | F144: 1850000 | G144: Општинска управа
A145: 2101 | C145: Програм 16: Политички систем локалне самоуправе | D145: =SUBTOTAL(9,D146:D148) -> 37420000 | E145: =SUBTOTAL(9,E146:E148) -> 0 | F145: 37420000
B146: 2101-0001 | C146: Функционисање скупштине | D146: 18694000 | F146: =D146+E146 -> 18694000 | G146: Скупштина
B147: 2101-0002 | C147: Функционисање извршних органа | D147: 12376000 | F147: =D147+E147 -> 12376000 | G147: Председник/Општинско веће
B148: 2101-0003 | C148: Подршка раду извршних органа власти и скупштине | D148: 6350000 | F148: =D148+E148 -> 6350000 | G148: Скупштина
A149: 0501 | C149: Програм 17: Енергетска ефикасност и обновљиви извори енергије | D149: =SUBTOTAL(9,D150:D150) -> 0 | E149: =SUBTOTAL(9,E150:E150) -> 18833520 | F149: =SUBTOTAL(9,F150:F150) -> 18833520
B150: 0501-0001 | C150: Енергетски менаџмент | E150: 18833520 | F150: =D150+E150 -> 18833520 | G150: Општинска управа
C151: UKUPNO | D151: =SUBTOTAL(9,D7:D150) -> 923480000 | E151: =SUBTOTAL(9,E7:E150) -> 136983520 | F151: =SUBTOTAL(9,F7:F150) -> 1060463520

Sheet Sheet1 (hidden)
A3: Row Labels | B3: Sum of Укупно
A4: 1 | B4: 1240000
A5: 2 | B5: 222000
A6: 3 | B6: 20000
A7: 4 | B7: 5000
A8: 5 | B8: 50010
A9: 6 | B9: 16500000
A10: 7 | B10: 100000
A11: 8 | B11: 170000
A12: 9 | B12: 367000
A13: 10 | B13: 2750000
A14: 11 | B14: 200000
A15: 12 | B15: 50000
A16: 13 | B16: 50000
A17: 14 | B17: 2821000
A18: 15 | B18: 505000
A19: 16 | B19: 50000
A20: 17 | B20: 60000
A21: 18 | B21: 150000
A22: 19 | B22: 2720000
A23: 20 | B23: 50000
A24: 21 | B24: 350000
A25: 22 | B25: 200000
A26: 23 | B26: 200000
A27: 24 | B27: 4620000
A28: 25 | B28: 50000
A29: 26 | B29: 3000000
A30: 27 | B30: 1926000
A31: 28 | B31: 345000
A32: 29 | B32: 20000
A33: 30 | B33: 20000
A34: 31 | B34: 10000
A35: 32 | B35: 220000
A36: 33 | B36: 3000000
A37: 34 | B37: 115025000
A38: 35 | B38: 20590000
A39: 36 | B39: 300000
A40: 37 | B40: 1000000
A41: 38 | B41: 6250000
A42: 39 | B42: 1500000
A43: 40 | B43: 13800000
A44: 41 | B44: 2000000
A45: 42 | B45: 15000000
A46: 43 | B46: 2200000
A47: 44 | B47: 2000000
A48: 45 | B48: 9000000
A49: 46 | B49: 10000000
A50: 47 | B50: 600000
A51: 48 | B51: 50000
A52: 49 | B52: 10000
A53: 50 | B53: 1000000
A54: 51 | B54: 200000
A55: 52 | B55: 3000000
A56: 53 | B56: 200000
A57: 54 | B57: 200000
A58: 55 | B58: 50000
A59: 56 | B59: 500000
A60: 57 | B60: 1000000
A61: 58 | B61: 100000
A62: 59 | B62: 470000
A63: 60 | B63: 1000000
A64: 61 | B64: 3000000
A65: 62 | B65: 10000000
A66: 63 | B66: 500000
A67: 64 | B67: 1000000
A68: 65 | B68: 850000
A69: 66 | B69: 12000000
A70: 67 | B70: 3463000
A71: 69 | B71: 18000000
A72: 70 | B72: 2000000
A73: 71 | B73: 1200000
A74: 72 | B74: 12000000
A75: 73 | B75: 200000
A76: 74 | B76: 1600000
A77: 75 | B77: 350000
A78: 76 | B78: 10250000
A79: 77 | B79: 15000000
A80: 78 | B80: 10000000
A81: 79 | B81: 20000000
A82: 80 | B82: 2000000
A83: 81 | B83: 400000
A84: 82 | B84: 0
A85: 83 | B85: 0
A86: 84 | B86: 0
A87: 85 | B87: 0
A88: 86 | B88: 0
A89: 87 | B89: 0
A90: 88 | B90: 0
A91: 89 | B91: 10000000
A92: 90 | B92: 1500000
A93: 91 | B93: 0
A94: 92 | B94: 0
A95: 93 | B95: 0
A96: 94 | B96: 20000000
A97: 95 | B97: 14000000
A98: 96 | B98: 40000000
A99: 97 | B99: 0
A100: 98 | B100: 0
A101: 99 | B101: 0
A102: 100 | B102: 0
A103: 101 | B103: 0
A104: 102 | B104: 0
A105: 103 | B105: 0
A106: 104 | B106: 3000000
A107: 105 | B107: 2000000
A108: 106 | B108: 2000000
A109: 107 | B109: 1200000
A110: 108 | B110: 0
A111: 109 | B111: 0
A112: 110 | B112: 0
A113: 111 | B113: 0
A114: 112 | B114: 0
A115: 113 | B115: 0
A116: 114 | B116: 0
A117: 115 | B117: 0
A118: 116 | B118: 0
A119: 117 | B119: 0
A120: 118 | B120: 0
A121: 119 | B121: 0
A122: 120 | B122: 0
A123: 121 | B123: 0
A124: 122 | B124: 0
A125: 123 | B125: 0
A126: 124 | B126: 0
A127: 125 | B127: 0
A128: 126 | B128: 0
A129: 127 | B129: 0
A130: 128 | B130: 0
A131: 129 | B131: 0
A132: 130 | B132: 0
A133: 131 | B133: 0
A134: 132 | B134: 0
A135: 133 | B135: 0
A136: 134 | B136: 0
A137: 135 | B137: 0
A138: 136 | B138: 0
A139: 137 | B139: 0
A140: 138 | B140: 0
A141: 139 | B141: 0
A142: 140 | B142: 0
A143: 141 | B143: 0
A144: 142 | B144: 0
A145: 143 | B145: 0
A146: 144 | B146: 0
A147: 145 | B147: 0
A148: 146 | B148: 0
A149: 147 | B149: 0
A150: 148 | B150: 0
A151: 149 | B151: 0
A152: 150 | B152: 0
A153: 151 | B153: 0
A154: 152 | B154: 0
A155: 153 | B155: 0
A156: 154 | B156: 0
A157: 155 | B157: 0
A158: 156 | B158: 0
A159: 157 | B159: 0
A160: 158 | B160: 0
A161: 159 | B161: 0
A162: 160 | B162: 0
A163: 161 | B163: 0
A164: 162 | B164: 0
A165: 163 | B165: 0
A166: 164 | B166: 0
A167: 165 | B167: 0
A168: 166 | B168: 0
A169: 167 | B169: 0
A170: 168 | B170: 0
A171: 169 | B171: 0
A172: 170 | B172: 0
A173: 171 | B173: 0
A174: 172 | B174: 0
A175: 173 | B175: 0
A176: 174 | B176: 0
A177: 175 | B177: 0
A178: 176 | B178: 0
A179: 177 | B179: 0
A180: 178 | B180: 0
A181: 179 | B181: 0
A182: 180 | B182: 0
A183: 181 | B183: 0
A184: 182 | B184: 0
A185: 183 | B185: 0
A186: 184 | B186: 0
A187: 185 | B187: 0
A188: 186 | B188: 0
A189: 187 | B189: 0
A190: 188 | B190: 0
A191: 189 | B191: 0
A192: 190 | B192: 0
A193: 191 | B193: 0
A194: 192 | B194: 31487300
A195: 193 | B195: 24608110
A196: 194 | B196: 1730000
A197: 195 | B197: 716500
A198: 196 | B198: 5724000
A199: 197 | B199: 4158500
A200: 198 | B200: 0
A201: 199 | B201: 0
A202: 200 | B202: 4265559
... 158 more rows

Sheet Sheet2 (hidden)
A3: Row Labels | B3: Sum of Укупно
A4: 1 | B4: 1240000
A5: 2 | B5: 222000
A6: 3 | B6: 20000
A7: 4 | B7: 5000
A8: 5 | B8: 50010
A9: 6 | B9: 16500000
A10: 7 | B10: 100000
A11: 8 | B11: 170000
A12: 9 | B12: 387000
A13: 10 | B13: 2750000
A14: 11 | B14: 500000
A15: 12 | B15: 50000
A16: 13 | B16: 50000
A17: 14 | B17: 2821000
A18: 15 | B18: 505000
A19: 16 | B19: 50000
A20: 17 | B20: 60000
A21: 18 | B21: 150000
A22: 19 | B22: 2720000
A23: 20 | B23: 50000
A24: 21 | B24: 350000
A25: 22 | B25: 200000
A26: 23 | B26: 200000
A27: 24 | B27: 200000
A28: 25 | B28: 200000
A29: 26 | B29: 200000
A30: 27 | B30: 4620000
A31: 28 | B31: 50000
A32: 29 | B32: 3000000
A33: 30 | B33: 1926000
A34: 31 | B34: 345000
A35: 32 | B35: 20000
A36: 33 | B36: 20000
A37: 34 | B37: 10000
A38: 35 | B38: 220000
A39: 36 | B39: 3000000
A40: 37 | B40: 115025000
A41: 38 | B41: 20590000
A42: 39 | B42: 300000
A43: 40 | B43: 1000000
A44: 41 | B44: 6250000
A45: 42 | B45: 1500000
A46: 43 | B46: 13800000
A47: 44 | B47: 2000000
A48: 45 | B48: 15600000
A49: 46 | B49: 2200000
A50: 47 | B50: 2000000
A51: 48 | B51: 9000000
A52: 49 | B52: 10000000
A53: 50 | B53: 600000
A54: 51 | B54: 50000
A55: 52 | B55: 10000
A56: 53 | B56: 2050000
A57: 54 | B57: 200000
A58: 55 | B58: 3000000
A59: 56 | B59: 200000
A60: 57 | B60: 200000
A61: 58 | B61: 50000
A62: 59 | B62: 500000
A63: 60 | B63: 1000000
A64: 61 | B64: 100000
A65: 62 | B65: 470000
A66: 63 | B66: 75000
A67: 64 | B67: 1000000
A68: 65 | B68: 3000000
A69: 66 | B69: 11797600
A70: 67 | B70: 500000
A71: 68 | B71: 1000000
A72: 69 | B72: 850000
A73: 70 | B73: 15200000
A74: 71 | B74: 960000
A75: 72 | B75: 2760000
A76: 73 | B76: 206000
A77: 74 | B77: 957000
A78: 75 | B78: 3877000
A79: 76 | B79: 168000
A80: 77 | B80: 6000
A81: 78 | B81: 5384000
A82: 79 | B82: 13929000
A83: 80 | B83: 50000
A84: 81 | B84: 300000
A85: 82 | B85: 18000000
A86: 83 | B86: 2000000
A87: 84 | B87: 1350000
A88: 85 | B88: 12000000
A89: 86 | B89: 200000
A90: 87 | B90: 1600000
A91: 88 | B91: 5000000
A92: 89 | B92: 350000
A93: 90 | B93: 1200000
A94: 91 | B94: 10250000
A95: 92 | B95: 200000
A96: 93 | B96: 3000000
A97: 94 | B97: 11000000
A98: 95 | B98: 1500000
A99: 96 | B99: 1500000
A100: 97 | B100: 622000
A101: 98 | B101: 400000
A102: 99 | B102: 7000000
A103: 100 | B103: 15000000
A104: 101 | B104: 10000000
A105: 102 | B105: 20000000
A106: 103 | B106: 2000000
A107: 104 | B107: 400000
A108: 105 | B108: 2000000
A109: 106 | B109: 400000
A110: 107 | B110: 500000
A111: 108 | B111: 850000
A112: 109 | B112: 6000000
A113: 110 | B113: 400000
A114: 111 | B114: 300000
A115: 112 | B115: 350000
A116: 113 | B116: 300000
A117: 114 | B117: 500000
A118: 115 | B118: 500000
A119: 116 | B119: 1350000
A120: 117 | B120: 5000000
A121: 118 | B121: 10000000
A122: 119 | B122: 1500000
A123: 120 | B123: 1150000
A124: 121 | B124: 500000
A125: 122 | B125: 950000
A126: 123 | B126: 21470000
A127: 124 | B127: 14000000
A128: 125 | B128: 40000000
A129: 126 | B129: 1020000
A130: 127 | B130: 2980000
A131: 128 | B131: 3000000
A132: 129 | B132: 2000000
A133: 130 | B133: 2000000
A134: 131 | B134: 1200000
A135: 132 | B135: 1200000
A136: 133 | B136: 5990000
A137: 134 | B137: 1500000
A138: 135 | B138: 600000
A139: 136 | B139: 500000
A140: 137 | B140: 500000
A141: 138 | B141: 500000
A142: 139 | B142: 900000
A143: 140 | B143: 400000
A144: 141 | B144: 400000
A145: 142 | B145: 500000
A146: 143 | B146: 400000
A147: 144 | B147: 500000
A148: 145 | B148: 500000
A149: 146 | B149: 400000
A150: 147 | B150: 600000
A151: 148 | B151: 750000
A152: 149 | B152: 1850000
A153: 150 | B153: 600000
A154: 151 | B154: 2250000
A155: 152 | B155: 3780000
A156: 153 | B156: 4000000
A157: 154 | B157: 2590000
A158: 155 | B158: 1970000
A159: 156 | B159: 4050000
A160: 157 | B160: 2290000
A161: 158 | B161: 1000000
A162: 159 | B162: 300000
A163: 160 | B163: 3500000
A164: 161 | B164: 1983000
A165: 162 | B165: 4000000
A166: 163 | B166: 1500000
A167: 164 | B167: 300000
A168: 165 | B168: 900000
A169: 166 | B169: 500000
A170: 167 | B170: 500000
A171: 168 | B171: 2000000
A172: 169 | B172: 1000000
A173: 170 | B173: 500000
A174: 171 | B174: 500000
A175: 172 | B175: 650000
A176: 173 | B176: 500000
A177: 174 | B177: 500000
A178: 175 | B178: 5000000
A179: 176 | B179: 400000
A180: 177 | B180: 600000
A181: 178 | B181: 14000000
A182: 179 | B182: 500000
A183: 180 | B183: 600000
A184: 181 | B184: 800000
A185: 182 | B185: 600000
A186: 183 | B186: 300000
A187: 184 | B187: 300000
A188: 185 | B188: 600000
A189: 186 | B189: 400000
A190: 187 | B190: 6000000
A191: 188 | B191: 2000000
A192: 189 | B192: 1000000
A193: 190 | B193: 950000
A194: 191 | B194: 31487300
A195: 192 | B195: 24608200
A196: 193 | B196: 1730000
A197: 194 | B197: 716500
A198: 195 | B198: 5824000
A199: 196 | B199: 4158500
A200: 197 | B200: 4700000
A201: 198 | B201: 4265700
A202: 199 | B202: 600000
... 132 more rows

Sheet Sheet3 (hidden)
B3: Values
A4: Row Labels | B4: Sum of Средства из буџета | C4: Sum of Средства из осталих извора | D4: Sum of Укупно
A5: Програмска активност 0101-0002: | B5: 22400000 | C5: 0 | D5: 22400000
A6: Програмска активност 0401-0001: | B6: 8450000 | C6: 0 | D6: 8450000
A7: Програмска активност 0401-0004: | B7: 11400000 | C7: 0 | D7: 11400000
A8: Програмска активност 0401-0005: | B8: 0 | C8: 10000000 | D8: 10000000
A9: Програмска активност 0401-0006: | B9: 1500000 | C9: 0 | D9: 1500000
A10: Програмска активност 0501-0001: | B10: 0 | C10: 18833520 | D10: 18833520
A11: Програмска активност 0602-0001: | B11: 207770000 | C11: 0 | D11: 207770000
A12: Програмска активност 0602-0002: | B12: 6970000 | C12: 0 | D12: 6970000
A13: Програмска активност 0602-0004: | B13: 5541000 | C13: 0 | D13: 5541000
A14: Програмска активност 0602-0007: | B14: 6200000 | C14: 0 | D14: 6200000
A15: Програмска активност 0602-0009: | B15: 10197600 | C15: 0 | D15: 10197600
A16: Програмска активност 0602-0010: | B16: 500000 | C16: 0 | D16: 500000
A17: Програмска активност 0602-0014: | B17: 1850000 | C17: 0 | D17: 1850000
A18: Програмска активност 0901-0001: | B18: 9500000 | C18: 0 | D18: 9500000
A19: Програмска активност 0901-0002: | B19: 3100000 | C19: 0 | D19: 3100000
A20: Програмска активност 0901-0005: | B20: 500000 | C20: 0 | D20: 500000
A21: Програмска активност 0901-0006: | B21: 2950000 | C21: 3050000 | D21: 6000000
A22: Програмска активност 0901-0007: | B22: 540000 | C22: 3200000 | D22: 3740000
A23: Програмска активност 1101-0001: | B23: 41497000 | C23: 0 | D23: 41497000
A24: Програмска активност 1101-0002: | B24: 300000 | C24: 0 | D24: 300000
A25: Програмска активност 1102-0001: | B25: 20000000 | C25: 0 | D25: 20000000
A26: Програмска активност 1102-0002: | B26: 1350000 | C26: 0 | D26: 1350000
A27: Програмска активност 1102-0003: | B27: 12000000 | C27: 0 | D27: 12000000
A28: Програмска активност 1102-0004: | B28: 1800000 | C28: 0 | D28: 1800000
A29: Програмска активност 1102-0005: | B29: 0 | C29: 5000000 | D29: 5000000
A30: Програмска активност 1102-0008: | B30: 18622000 | C30: 11000000 | D30: 29622000
A31: Програмска активност 1102-01: | B31: 7000000 | C31: 0 | D31: 7000000
A32: Програмска активност 1201-0001: | B32: 42842000 | C32: 0 | D32: 42842000
A33: Програмска активност 1201-0002: | B33: 5330000 | C33: 0 | D33: 5330000
A34: Програмска активност 1201-0003: | B34: 3300000 | C34: 0 | D34: 3300000
A35: Програмска активност 1201-0004: | B35: 5000000 | C35: 0 | D35: 5000000
A36: Програмска активност 1301-0001: | B36: 10650000 | C36: 0 | D36: 10650000
A37: Програмска активност 1301-0004: | B37: 22056200 | C37: 0 | D37: 22056200
A38: Програмска активност 1301-0005: | B38: 800000 | C38: 0 | D38: 800000
A39: Програмска активност 1501-0002: | B39: 15000000 | C39: 0 | D39: 15000000
A40: Програмска активност 1501-0003: | B40: 10000000 | C40: 0 | D40: 10000000
A41: Програмска активност 1502-0001: | B41: 9026500 | C41: 0 | D41: 9026500
A42: Програмска активност 1801-0001: | B42: 22600000 | C42: 0 | D42: 22600000
A43: Програмска активност 1801-0002: | B43: 400000 | C43: 0 | D43: 400000
A44: Програмска активност 2001-0001: | B44: 110543000 | C44: 0 | D44: 110543000
A45: Програмска активност 2002-0001: | B45: 73364200 | C45: 4700000 | D45: 78064200
A46: Програмска активност 2003-0001: | B46: 37327500 | C46: 7200000 | D46: 44527500
A47: Програмска активност 2101-0001: | B47: 18694000 | C47: 0 | D47: 18694000
A48: Програмска активност 2101-0002: | B48: 12376000 | C48: 0 | D48: 12376000
A49: Програмска активност 2101-0003: | B49: 6350000 | C49: 0 | D49: 6350000
A50: Пројекат 0701-01 | B50: 1150000 | C50: 0 | D50: 1150000
A51: Пројекат 0701-02 | B51: 500000 | C51: 0 | D51: 500000
A52: Пројекат 0701-03 | B52: 950000 | C52: 0 | D52: 950000
A53: Пројекат 0701-04 | B53: 2970000 | C53: 74000000 | D53: 76970000
A54: Пројекат 0701-05 | B54: 1020000 | C54: 0 | D54: 1020000
A55: Пројекат 0701-06 | B55: 2980000 | C55: 0 | D55: 2980000
A56: Пројекат 0701-07 | B56: 3000000 | C56: 0 | D56: 3000000
A57: Пројекат 0701-08 | B57: 2000000 | C57: 0 | D57: 2000000
A58: Пројекат 0701-09 | B58: 2000000 | C58: 0 | D58: 2000000
A59: Пројекат 0701-10 | B59: 1200000 | C59: 0 | D59: 1200000
A60: Пројекат 0701-11 | B60: 1200000 | C60: 0 | D60: 1200000
A61: Пројекат 0701-12 | B61: 5990000 | C61: 0 | D61: 5990000
A62: Пројекат 0701-13 | B62: 1500000 | C62: 0 | D62: 1500000
A63: Пројекат 0701-14 | B63: 600000 | C63: 0 | D63: 600000
A64: Пројекат 0701-15 | B64: 500000 | C64: 0 | D64: 500000
A65: Пројекат 0701-16 | B65: 500000 | C65: 0 | D65: 500000
A66: Пројекат 0701-17 | B66: 500000 | C66: 0 | D66: 500000
A67: Пројекат 0701-18 | B67: 900000 | C67: 0 | D67: 900000
A68: Пројекат 0701-19 | B68: 400000 | C68: 0 | D68: 400000
A69: Пројекат 0701-20 | B69: 300000 | C69: 0 | D69: 300000
A70: Пројекат 0701-21 | B70: 500000 | C70: 0 | D70: 500000
A71: Пројекат 0701-22 | B71: 400000 | C71: 0 | D71: 400000
A72: Пројекат 0701-23 | B72: 500000 | C72: 0 | D72: 500000
A73: Пројекат 0701-24 | B73: 500000 | C73: 0 | D73: 500000
A74: Пројекат 0701-25 | B74: 400000 | C74: 0 | D74: 400000
A75: Пројекат 0701-26 | B75: 600000 | C75: 0 | D75: 600000
A76: Пројекат 0701-27 | B76: 750000 | C76: 0 | D76: 750000
A77: Пројекат 0701-28 | B77: 1850000 | C77: 0 | D77: 1850000
A78: Пројекат 0701-29 | B78: 600000 | C78: 0 | D78: 600000
A79: Пројекат 0701-30 | B79: 2250000 | C79: 0 | D79: 2250000
A80: Пројекат 0701-31 | B80: 3780000 | C80: 0 | D80: 3780000
A81: Пројекат 0701-32 | B81: 4000000 | C81: 0 | D81: 4000000
A82: Пројекат 0701-33 | B82: 2590000 | C82: 0 | D82: 2590000
A83: Пројекат 0701-34 | B83: 1970000 | C83: 0 | D83: 1970000
A84: Пројекат 0701-35 | B84: 4050000 | C84: 0 | D84: 4050000
A85: Пројекат 0701-36 | B85: 2290000 | C85: 0 | D85: 2290000
A86: Пројекат 0701-37 | B86: 1000000 | C86: 0 | D86: 1000000
A87: Пројекат 0701-38 | B87: 300000 | C87: 0 | D87: 300000
A88: Пројекат 0701-39 | B88: 3500000 | C88: 0 | D88: 3500000
A89: Пројекат 0701-40 | B89: 1983000 | C89: 0 | D89: 1983000
A90: Пројекат 0701-41 | B90: 4000000 | C90: 0 | D90: 4000000
A91: Пројекат 0701-42 | B91: 1500000 | C91: 0 | D91: 1500000
A92: Пројекат 0701-43 | B92: 300000 | C92: 0 | D92: 300000
A93: Пројекат 0701-44 | B93: 900000 | C93: 0 | D93: 900000
A94: Пројекат 0701-45 | B94: 500000 | C94: 0 | D94: 500000
A95: Пројекат 0701-46 | B95: 500000 | C95: 0 | D95: 500000
A96: Пројекат 0701-47 | B96: 2000000 | C96: 0 | D96: 2000000
A97: Пројекат 0701-48 | B97: 1000000 | C97: 0 | D97: 1000000
A98: Пројекат 0701-49 | B98: 500000 | C98: 0 | D98: 500000
A99: Пројекат 0701-50 | B99: 500000 | C99: 0 | D99: 500000
A100: Пројекат 0701-51 | B100: 650000 | C100: 0 | D100: 650000
A101: Пројекат 0701-52 | B101: 500000 | C101: 0 | D101: 500000
A102: Пројекат 0701-53 | B102: 500000 | C102: 0 | D102: 500000
A103: Пројекат 0701-54 | B103: 5000000 | C103: 0 | D103: 5000000
A104: Пројекат 0701-55 | B104: 400000 | C104: 0 | D104: 400000
A105: Пројекат 0701-56 | B105: 600000 | C105: 0 | D105: 600000
A106: Пројекат 0701-57 | B106: 13000000 | C106: 0 | D106: 13000000
A107: Пројекат 0701-58 | B107: 500000 | C107: 0 | D107: 500000
A108: Пројекат 0701-59 | B108: 600000 | C108: 0 | D108: 600000
A109: Пројекат 0701-60 | B109: 800000 | C109: 0 | D109: 800000
A110: Пројекат 0701-61 | B110: 500000 | C110: 0 | D110: 500000
A111: Пројекат 0701-62 | B111: 300000 | C111: 0 | D111: 300000
A112: Пројекат 0701-63 | B112: 300000 | C112: 0 | D112: 300000
A113: Пројекат 0701-64 | B113: 400000 | C113: 0 | D113: 400000
A114: Пројекат 0701-65 | B114: 400000 | C114: 0 | D114: 400000
A115: Пројекат 0701-66 | B115: 6000000 | C115: 0 | D115: 6000000
A116: Пројекат 0701-67 | B116: 2000000 | C116: 0 | D116: 2000000
A117: Пројекат 0701-68 | B117: 500000 | C117: 0 | D117: 500000
A118: Пројекат 0701-69 | B118: 400000 | C118: 0 | D118: 400000
A119: Пројекат 1201-01 | B119: 150000 | C119: 0 | D119: 150000
A120: Пројекат 1201-02 | B120: 150000 | C120: 0 | D120: 150000
A121: Пројекат 1201-03 | B121: 400000 | C121: 0 | D121: 400000
A122: Пројекат 1301-01: | B122: 500000 | C122: 0 | D122: 500000
A123: Пројекат 1301-02: | B123: 700000 | C123: 0 | D123: 700000
A124: Пројекат 1301-03: | B124: 710000 | C124: 0 | D124: 710000
A125: Grand Total | B125: 919230000 | C125: 136983520 | D125: 1056213520

Sheet Sheet5 (hidden)
B3: Values
A4: Row Labels | B4: Sum of Средства из буџета | C4: Sum of Средства из осталих извора | D4: Sum of Укупно
A5: Програмска активност 0101-0002: | B5: 22400000 | C5: 0 | D5: 22400000
A6: Програмска активност 0401-0001: | B6: 8450000 | C6: 0 | D6: 8450000
A7: Програмска активност 0401-0004: | B7: 11400000 | C7: 0 | D7: 11400000
A8: Програмска активност 0401-0005: | B8: 0 | C8: 10000000 | D8: 10000000
A9: Програмска активност 0401-0006: | B9: 1500000 | C9: 0 | D9: 1500000
A10: Програмска активност 0501-0001: | B10: 0 | C10: 18833520 | D10: 18833520
A11: Програмска активност 0602-0001: | B11: 207770000 | C11: 0 | D11: 207770000
A12: Програмска активност 0602-0002: | B12: 6970000 | C12: 0 | D12: 6970000
A13: Програмска активност 0602-0004: | B13: 5541000 | C13: 0 | D13: 5541000
A14: Програмска активност 0602-0007: | B14: 6200000 | C14: 0 | D14: 6200000
A15: Програмска активност 0602-0009: | B15: 10197600 | C15: 0 | D15: 10197600
A16: Програмска активност 0602-0010: | B16: 500000 | C16: 0 | D16: 500000
A17: Програмска активност 0602-0014: | B17: 1850000 | C17: 0 | D17: 1850000
A18: Програмска активност 0901-0001: | B18: 9500000 | C18: 0 | D18: 9500000
A19: Програмска активност 0901-0002: | B19: 3100000 | C19: 0 | D19: 3100000
A20: Програмска активност 0901-0005: | B20: 500000 | C20: 0 | D20: 500000
A21: Програмска активност 0901-0006: | B21: 2950000 | C21: 3050000 | D21: 6000000
A22: Програмска активност 0901-0007: | B22: 540000 | C22: 3200000 | D22: 3740000
A23: Програмска активност 1101-0001: | B23: 41497000 | C23: 0 | D23: 41497000
A24: Програмска активност 1101-0002: | B24: 300000 | C24: 0 | D24: 300000
A25: Програмска активност 1102-0001: | B25: 20000000 | C25: 0 | D25: 20000000
A26: Програмска активност 1102-0002: | B26: 1350000 | C26: 0 | D26: 1350000
A27: Програмска активност 1102-0003: | B27: 12000000 | C27: 0 | D27: 12000000
A28: Програмска активност 1102-0004: | B28: 1800000 | C28: 0 | D28: 1800000
A29: Програмска активност 1102-0005: | B29: 0 | C29: 5000000 | D29: 5000000
A30: Програмска активност 1102-0008: | B30: 18622000 | C30: 11000000 | D30: 29622000
A31: Програмска активност 1102-01: | B31: 7000000 | C31: 0 | D31: 7000000
A32: Програмска активност 1201-0001: | B32: 42842000 | C32: 0 | D32: 42842000
A33: Програмска активност 1201-0002: | B33: 5330000 | C33: 0 | D33: 5330000
A34: Програмска активност 1201-0003: | B34: 3300000 | C34: 0 | D34: 3300000
A35: Програмска активност 1201-0004: | B35: 5000000 | C35: 0 | D35: 5000000
A36: Програмска активност 1301-0001: | B36: 10650000 | C36: 0 | D36: 10650000
A37: Програмска активност 1301-0004: | B37: 22056200 | C37: 0 | D37: 22056200
A38: Програмска активност 1301-0005: | B38: 800000 | C38: 0 | D38: 800000
A39: Програмска активност 1501-0002: | B39: 15000000 | C39: 0 | D39: 15000000
A40: Програмска активност 1501-0003: | B40: 10000000 | C40: 0 | D40: 10000000
A41: Програмска активност 1502-0001: | B41: 9026500 | C41: 0 | D41: 9026500
A42: Програмска активност 1801-0001: | B42: 22600000 | C42: 0 | D42: 22600000
A43: Програмска активност 1801-0002: | B43: 400000 | C43: 0 | D43: 400000
A44: Програмска активност 2001-0001: | B44: 110543000 | C44: 0 | D44: 110543000
A45: Програмска активност 2002-0001: | B45: 73364200 | C45: 4700000 | D45: 78064200
A46: Програмска активност 2003-0001: | B46: 37327500 | C46: 7200000 | D46: 44527500
A47: Програмска активност 2101-0001: | B47: 18694000 | C47: 0 | D47: 18694000
A48: Програмска активност 2101-0002: | B48: 12376000 | C48: 0 | D48: 12376000
A49: Програмска активност 2101-0003: | B49: 6350000 | C49: 0 | D49: 6350000
A50: Пројекат 0701-01 | B50: 1150000 | C50: 0 | D50: 1150000
A51: Пројекат 0701-02 | B51: 500000 | C51: 0 | D51: 500000
A52: Пројекат 0701-03 | B52: 950000 | C52: 0 | D52: 950000
A53: Пројекат 0701-04 | B53: 2970000 | C53: 74000000 | D53: 76970000
A54: Пројекат 0701-05 | B54: 1020000 | C54: 0 | D54: 1020000
A55: Пројекат 0701-06 | B55: 2980000 | C55: 0 | D55: 2980000
A56: Пројекат 0701-07 | B56: 3000000 | C56: 0 | D56: 3000000
A57: Пројекат 0701-08 | B57: 2000000 | C57: 0 | D57: 2000000
A58: Пројекат 0701-09 | B58: 2000000 | C58: 0 | D58: 2000000
A59: Пројекат 0701-10 | B59: 1200000 | C59: 0 | D59: 1200000
A60: Пројекат 0701-11 | B60: 1200000 | C60: 0 | D60: 1200000
A61: Пројекат 0701-12 | B61: 5990000 | C61: 0 | D61: 5990000
A62: Пројекат 0701-13 | B62: 1500000 | C62: 0 | D62: 1500000
A63: Пројекат 0701-14 | B63: 600000 | C63: 0 | D63: 600000
A64: Пројекат 0701-15 | B64: 500000 | C64: 0 | D64: 500000
A65: Пројекат 0701-16 | B65: 500000 | C65: 0 | D65: 500000
A66: Пројекат 0701-17 | B66: 500000 | C66: 0 | D66: 500000
A67: Пројекат 0701-18 | B67: 900000 | C67: 0 | D67: 900000
A68: Пројекат 0701-19 | B68: 400000 | C68: 0 | D68: 400000
A69: Пројекат 0701-20 | B69: 300000 | C69: 0 | D69: 300000
A70: Пројекат 0701-21 | B70: 500000 | C70: 0 | D70: 500000
A71: Пројекат 0701-22 | B71: 400000 | C71: 0 | D71: 400000
A72: Пројекат 0701-23 | B72: 500000 | C72: 0 | D72: 500000
A73: Пројекат 0701-24 | B73: 500000 | C73: 0 | D73: 500000
A74: Пројекат 0701-25 | B74: 400000 | C74: 0 | D74: 400000
A75: Пројекат 0701-26 | B75: 600000 | C75: 0 | D75: 600000
A76: Пројекат 0701-27 | B76: 750000 | C76: 0 | D76: 750000
A77: Пројекат 0701-28 | B77: 1850000 | C77: 0 | D77: 1850000
A78: Пројекат 0701-29 | B78: 600000 | C78: 0 | D78: 600000
A79: Пројекат 0701-30 | B79: 2250000 | C79: 0 | D79: 2250000
A80: Пројекат 0701-31 | B80: 3780000 | C80: 0 | D80: 3780000
A81: Пројекат 0701-32 | B81: 4000000 | C81: 0 | D81: 4000000
A82: Пројекат 0701-33 | B82: 2590000 | C82: 0 | D82: 2590000
A83: Пројекат 0701-34 | B83: 1970000 | C83: 0 | D83: 1970000
A84: Пројекат 0701-35 | B84: 4050000 | C84: 0 | D84: 4050000
A85: Пројекат 0701-36 | B85: 2290000 | C85: 0 | D85: 2290000
A86: Пројекат 0701-37 | B86: 1000000 | C86: 0 | D86: 1000000
A87: Пројекат 0701-38 | B87: 300000 | C87: 0 | D87: 300000
A88: Пројекат 0701-39 | B88: 3500000 | C88: 0 | D88: 3500000
A89: Пројекат 0701-40 | B89: 1983000 | C89: 0 | D89: 1983000
A90: Пројекат 0701-41 | B90: 4000000 | C90: 0 | D90: 4000000
A91: Пројекат 0701-42 | B91: 1500000 | C91: 0 | D91: 1500000
A92: Пројекат 0701-43 | B92: 300000 | C92: 0 | D92: 300000
A93: Пројекат 0701-44 | B93: 900000 | C93: 0 | D93: 900000
A94: Пројекат 0701-45 | B94: 500000 | C94: 0 | D94: 500000
A95: Пројекат 0701-46 | B95: 500000 | C95: 0 | D95: 500000
A96: Пројекат 0701-47 | B96: 2000000 | C96: 0 | D96: 2000000
A97: Пројекат 0701-48 | B97: 1000000 | C97: 0 | D97: 1000000
A98: Пројекат 0701-49 | B98: 500000 | C98: 0 | D98: 500000
A99: Пројекат 0701-50 | B99: 500000 | C99: 0 | D99: 500000
A100: Пројекат 0701-51 | B100: 650000 | C100: 0 | D100: 650000
A101: Пројекат 0701-52 | B101: 500000 | C101: 0 | D101: 500000
A102: Пројекат 0701-53 | B102: 500000 | C102: 0 | D102: 500000
A103: Пројекат 0701-54 | B103: 5000000 | C103: 0 | D103: 5000000
A104: Пројекат 0701-55 | B104: 400000 | C104: 0 | D104: 400000
A105: Пројекат 0701-56 | B105: 600000 | C105: 0 | D105: 600000
A106: Пројекат 0701-57 | B106: 13000000 | C106: 0 | D106: 13000000
A107: Пројекат 0701-58 | B107: 500000 | C107: 0 | D107: 500000
A108: Пројекат 0701-59 | B108: 600000 | C108: 0 | D108: 600000
A109: Пројекат 0701-60 | B109: 800000 | C109: 0 | D109: 800000
A110: Пројекат 0701-61 | B110: 500000 | C110: 0 | D110: 500000
A111: Пројекат 0701-62 | B111: 300000 | C111: 0 | D111: 300000
A112: Пројекат 0701-63 | B112: 300000 | C112: 0 | D112: 300000
A113: Пројекат 0701-64 | B113: 400000 | C113: 0 | D113: 400000
A114: Пројекат 0701-65 | B114: 400000 | C114: 0 | D114: 400000
A115: Пројекат 0701-66 | B115: 6000000 | C115: 0 | D115: 6000000
A116: Пројекат 0701-67 | B116: 2000000 | C116: 0 | D116: 2000000
A117: Пројекат 0701-68 | B117: 500000 | C117: 0 | D117: 500000
A118: Пројекат 0701-69 | B118: 400000 | C118: 0 | D118: 400000
A119: Пројекат 1201-01 | B119: 150000 | C119: 0 | D119: 150000
A120: Пројекат 1201-02 | B120: 150000 | C120: 0 | D120: 150000
A121: Пројекат 1201-03 | B121: 400000 | C121: 0 | D121: 400000
A122: Пројекат 1301-01: | B122: 500000 | C122: 0 | D122: 500000
A123: Пројекат 1301-02: | B123: 700000 | C123: 0 | D123: 700000
A124: Пројекат 1301-03: | B124: 710000 | C124: 0 | D124: 710000
A125: Пројекат 0701-70 | B125: 450000 | C125: 0 | D125: 450000
A126: Пројекат 0701-71 | B126: 450000 | C126: 0 | D126: 450000
A127: Пројекат 0701-72 | B127: 450000 | C127: 0 | D127: 450000
A128: Пројекат 0701-73 | B128: 450000 | C128: 0 | D128: 450000
A129: Пројекат 0701-74 | B129: 500000 | C129: 0 | D129: 500000
A130: Пројекат 0701-75 | B130: 1000000 | C130: 0 | D130: 1000000
A131: Пројекат 0701-76 | B131: 950000 | C131: 0 | D131: 950000
A132: Grand Total | B132: 923480000 | C132: 136983520 | D132: 1060463520

Sheet Troškovi 2019
A1: Раздео | B1: Глава | C1: Програмска активност | D1: Функција | E1: Позиција | F1: Економска класификација | G1: ОПИС | H1: Средства из буџета | I1: Средства из осталих извора | J1: Укупно | L1: provera | M1: БУЏЕТ 2018 Р2
A2: 1 | B2: 2 | C2: 3 | D2: 4 | E2: 5 | F2: 6 | G2: 7 | H2: 8 | I2: 9 | J2: 10
A3: 1 | B3: 1.01 | G3: СКУПШТИНА ОПШТИНЕ | L3: =(H3+I3)-J3 -> 0
C4: 2101 | G4: ПРОГРАМ 16: ПОЛИТИЧКИ СИСТЕМ ЛОКАЛНЕ САМОУПРАВЕ | L4: =(H4+I4)-J4 -> 0
C5: 2101-0001 | G5: Функционисање скупштине | L5: =(H5+I5)-J5 -> 0
D6: 111 | G6: Извршни и законодавни органи, финансијски и фискални послови | L6: =(H6+I6)-J6 -> 0
E7: 1 | F7: 411 | G7: Плате, додаци и накнаде запосленима | H7: 1240000 | J7: =H7+I7 -> 1240000 | K7: =H7+I7 -> 1240000 | L7: =(H7+I7)-J7 -> 0 | M7: 1497000
E8: 2 | F8: 412 | G8: Социјални доприноси на терет послодавца | H8: 222000 | J8: 222000 | K8: 222000 | L8: =(H8+I8)-J8 -> 0 | M8: 267800
E9: 3 | F9: 414 | G9: Социјална давања запосленима | H9: 20000 | J9: 20000 | K9: 20000 | L9: 0 | M9: 160000
E10: 4 | F10: 416 | G10: Награде, бонуси и остали пословни расхода | H10: 5000 | J10: 5000 | K10: 5000 | L10: 0 | M10: 5000
E11: 5 | F11: 422 | G11: Трошкови путовања | H11: =100000-50000 -> 50000 | J11: 50000 | K11: 50000 | L11: 0 | M11: 50000
E12: 6 | F12: 423 | G12: Услуге по уговору | H12: =14040000+300000+2000000+160000 -> 16500000 | J12: 16500000 | K12: 16500000 | L12: 0 | M12: 16502000
E13: 7 | F13: 426 | G13: Материјал | H13: =50000+50000 -> 100000 | J13: 100000 | K13: 100000 | L13: 0 | M13: 100000
E14: 8 | F14: 465 | G14: Остале текуће донације по закону | H14: 170000 | J14: 170000 | K14: 170000 | L14: 0 | M14: 350000
E15: 9 | F15: 481 | G15: Дотација - редован рад политичких странака (порески приходи*0,105%) | H15: 387000 | J15: 387000 | K15: 387000 | L15: 0 | M15: 367000
G16: Функција 111: | H16: =SUBTOTAL(9,H7:H15) -> 18694000 | I16: 0 | J16: 18694000 | K16: 18694000 | L16: 0 | M16: 19298800
G17: Програмска активност 2101-0001: | H17: =SUBTOTAL(9,H7:H15) -> 18694000 | I17: 0 | J17: 18694000 | K17: 18694000 | L17: 0 | M17: 19298800
K18: 0 | L18: 0
B19: 2 | C19: 2101-0003 | G19: Подршка раду извршних органа власти и скупштине | K19: 0 | L19: 0
D20: 111 | G20: Извршни и законодавни органи | K20: 0 | L20: 0
E21: 10 | F21: 423 | G21: Услуге по уговору | H21: 2750000 | J21: =H21+I21 -> 2750000 | K21: 2750000 | L21: 0 | M21: 2750000
E22: 11 | F22: 481 | G22: Дотације - Савет за безбедност општине Бујановац | H22: 500000 | J22: =H22+I22 -> 500000 | K22: 500000 | L22: 0 | M22: 200000
E23: 12 | F23: 481 | G23: Дотације - Савет за међунационалне односе | H23: =200000-150000 -> 50000 | J23: =H23+I23 -> 50000 | K23: 50000 | L23: 0 | M23: 50000
E24: 13 | F24: 481 | G24: Дотације - Савет за родну равноправност | H24: =200000-150000 -> 50000 | J24: =H24+I24 -> 50000 | K24: 50000 | L24: 0 | M24: 50000
G25: Функција 111: | H25: =SUBTOTAL(9,H21:H24) -> 3350000 | I25: =SUBTOTAL(9,I21:I24) -> 0 | J25: 3350000 | K25: 3350000 | L25: 0 | M25: 3050000
G26: Програмска активност 2101-0003: | H26: =SUBTOTAL(9,H21:H24) -> 3350000 | I26: =SUBTOTAL(9,I21:I24) -> 0 | J26: 3350000 | K26: 3350000 | L26: 0 | M26: 3050000
G27: УКУПНО ЗА ГЛАВУ 1.01: | H27: =SUBTOTAL(9,H7:H26) -> 22044000 | I27: =SUBTOTAL(9,I7:I26) -> 0 | J27: 22044000 | K27: 22044000 | L27: 0 | M27: 22348800
G28: УКУПНО ЗА РАЗДЕО 1: | H28: =SUBTOTAL(9,H7:H27) -> 22044000 | I28: =SUBTOTAL(9,I7:I27) -> 0 | J28: 22044000 | K28: 22044000 | L28: 0 | M28: 22348800
K29: 0 | L29: 0
A30: 2 | B30: 2.01 | G30: ПРЕДСЕДНИК ОПШТИНЕ | K30: 0 | L30: 0
C31: 2101 | G31: ПРОГРАМ 16: ПОЛИТИЧКИ СИСТЕМ ЛОКАЛНЕ САМОУПРАВЕ | K31: 0 | L31: 0
C32: 2101-0002 | G32: Функционисање извршних органа | K32: 0 | L32: 0
D33: 111 | G33: Извршни и законодавни органи | K33: 0 | L33: 0
E34: 14 | F34: 411 | G34: Плате, додаци и накнаде запосленима | H34: 2821000 | J34: =H34+I34 -> 2821000 | K34: 2821000 | L34: 0 | M34: 2635000
E35: 15 | F35: 412 | G35: Социјални доприноси на терет послодавца | H35: 505000 | J35: 505000 | K35: 505000 | L35: 0 | M35: 400000
E36: 16 | F36: 414 | G36: Социјална давања запосленима | H36: 50000 | J36: 50000 | K36: 50000 | L36: 0 | M36: 50000
E37: 17 | F37: 416 | G37: Награде, бонуси и остали пословни расхода | H37: =100000-40000 -> 60000 | J37: 60000 | K37: 60000 | L37: 0 | M37: 60000
E38: 18 | F38: 422 | G38: Трошкови путовања | H38: =500000-350000 -> 150000 | J38: 150000 | K38: 150000 | L38: 0 | M38: 150000
E39: 19 | F39: 423 | G39: Услуге по уговору | H39: =1518000+600000+602000 -> 2720000 | J39: 2720000 | K39: =H39+I39 -> 2720000 | L39: 0 | M39: 2720000
E40: 20 | F40: 426 | G40: Материјал | H40: 50000 | J40: 50000 | K40: 50000 | L40: 0 | M40: 50000
E41: 21 | F41: 465 | G41: Остале текуће донације по закону | H41: 350000 | J41: 350000 | K41: 350000 | L41: 0 | M41: 350000
G42: Функција 111: | H42: =SUBTOTAL(9,H34:H41) -> 6706000 | I42: 0 | J42: 6706000 | K42: 6706000 | L42: 0 | M42: 6415000
G43: Програмска активност 2101-0002: | H43: =SUBTOTAL(9,H34:H41) -> 6706000 | I43: 0 | J43: 6706000 | K43: 6706000 | L43: 0 | M43: 6415000
C44: 2101-0002 | G44: Функционисање извршних органа | K44: 0 | L44: 0
D45: 111 | G45: Извршни и законодавни органи | K45: 0 | L45: 0
E46: 22 | F46: 423 | G46: Обележавање дана Општине Бујановац | H46: 200000 | J46: =H46+I46 -> 200000 | K46: 200000 | L46: 0 | M46: 200000
E47: 23 | F47: 423 | G47: Обележавање дана дијаспоре | H47: 200000 | J47: =H47+I47 -> 200000 | K47: 200000 | L47: 0 | M47: 150000
E48: 24 | F48: 423 | G48: Петровдански дани | H48: 200000 | J48: =H48+I48 -> 200000 | K48: 200000 | L48: 0 | M48: 70000
E49: 25 | F49: 423 | G49: 8. април Светски дан Рома | H49: 200000 | J49: =H49+I49 -> 200000 | K49: 200000 | L49: 0
E50: 26 | F50: 423 | G50: Мајске манифестације | H50: 200000 | J50: =H50+I50 -> 200000 | K50: 200000 | L50: 0
G51: Функција 111: | H51: =SUBTOTAL(9,H46:H50) -> 1000000 | I51: =SUBTOTAL(9,I46:I50) -> 0 | J51: =SUBTOTAL(9,J46:J50) -> 1000000 | K51: 1000000 | L51: 0 | M51: 420000
G52: Програмска активност 2101-0002: | H52: =SUBTOTAL(9,H46:H50) -> 1000000 | I52: =SUBTOTAL(9,I46:I50) -> 0 | J52: =SUBTOTAL(9,J46:J50) -> 1000000 | K52: 1000000 | L52: 0 | M52: 420000
G53: УКУПНО ЗА ГЛАВУ 2.01: | H53: =SUBTOTAL(9,H34:H52) -> 7706000 | I53: =SUBTOTAL(9,I34:I52) -> 0 | J53: 7706000 | K53: 7706000 | L53: 0 | M53: 6835000
G54: УКУПНО ЗА РАЗДЕО 2: | H54: =SUBTOTAL(9,H34:H53) -> 7706000 | I54: =SUBTOTAL(9,I34:I53) -> 0 | J54: 7706000 | K54: 7706000 | L54: 0 | M54: 6835000
K55: 0 | L55: 0
A56: 3 | B56: 3.01 | G56: ОПШТИНСКО ВЕЋЕ | K56: 0 | L56: 0
C57: 2101 | G57: ПРОГРАМ 16: ПОЛИТИЧКИ СИСТЕМ ЛОКАЛНЕ САМОУПРАВЕ | K57: 0 | L57: 0
C58: 2101-0002 | G58: Функционисање извршних органа | K58: 0 | L58: 0
D59: 111 | G59: Извршни и законодавни органи | K59: 0 | L59: 0
E60: 27 | F60: 423 | G60: Услуге по уговору | H60: 4620000 | J60: =H60+I60 -> 4620000 | K60: 4620000 | L60: 0 | M60: 4315500
E61: 28 | F61: 426 | G61: Материјал | H61: 50000 | J61: =H61+I61 -> 50000 | K61: 50000 | L61: 0 | M61: 50000
G62: Функција 111: | H62: =SUBTOTAL(9,H60:H61) -> 4670000 | I62: =SUBTOTAL(9,I60:I61) -> 0 | J62: 4670000 | K62: 4670000 | L62: 0 | M62: 4365500
G63: Програмска активност 2101-0002: | H63: =SUBTOTAL(9,H60:H61) -> 4670000 | I63: =SUBTOTAL(9,I60:I61) -> 0 | J63: 4670000 | K63: 4670000 | L63: 0 | M63: 4365500
K64: 0 | L64: 0
C65: 2101-0003 | G65: Подршка раду извршних органа власти и скупштине | K65: 0 | L65: 0
D66: 111 | G66: Извршни и законодавни органи - рад комисија | K66: 0 | L66: 0
E67: 29 | F67: 423 | G67: Услуге по уговору | H67: 3000000 | J67: =H67+I67 -> 3000000 | K67: 3000000 | L67: 0 | M67: 3800000
G68: Функција 111: | H68: =SUBTOTAL(9,H67) -> 3000000 | I68: =SUBTOTAL(9,I67) -> 0 | J68: 3000000 | K68: 3000000 | L68: 0 | M68: 3800000
G69: Програмска активност 2101-0003: | H69: =SUBTOTAL(9,H67) -> 3000000 | I69: =SUBTOTAL(9,I67) -> 0 | J69: 3000000 | K69: 3000000 | L69: 0 | M69: 3800000
G70: УКУПНО ЗА ГЛАВУ 3.01: | H70: =SUBTOTAL(9,H60:H69) -> 7670000 | I70: =SUBTOTAL(9,I60:I69) -> 0 | J70: 7670000 | K70: 7670000 | L70: 0 | M70: 8165500
G71: УКУПНО ЗА РАЗДЕО 3: | H71: =SUBTOTAL(9,H60:H70) -> 7670000 | I71: =SUBTOTAL(9,I60:I70) -> 0 | J71: 7670000 | K71: 7670000 | L71: 0 | M71: 8165500
K72: 0 | L72: =(H72+I72)-J72 -> 0
A73: 4 | B73: 4.01 | G73: ПРАВОБРАНИЛАШТВО ОПШТИНЕ БУЈАНОВАЦ | K73: =H73+I73 -> 0 | L73: 0
C74: 0602 | G74: ПРОГРАМ 15: ЛОКАЛНА САМОУПРАВА | K74: 0 | L74: 0
C75: 0602-0004 | G75: Правобранилаштво општине Бујановац | K75: 0 | L75: 0
D76: 330 | G76: Судови | K76: 0 | L76: 0
E77: 30 | F77: 411 | G77: Плате, додаци и накнаде запосленима | H77: 1926000 | J77: =H77+I77 -> 1926000 | K77: 1926000 | L77: 0 | M77: 1800000
E78: 31 | F78: 412 | G78: Социјални доприноси на терет послодавца | H78: 345000 | J78: 345000 | K78: 345000 | L78: 0 | M78: 322200
E79: 32 | F79: 422 | G79: Трошкови путовања | H79: 20000 | J79: 20000 | K79: 20000 | L79: 0 | M79: 20000
E80: 33 | F80: 423 | G80: Услуге по уговору | H80: =100000-80000 -> 20000 | J80: 20000 | K80: 20000 | L80: 0 | M80: 20000
E81: 34 | F81: 426 | G81: Материјал | H81: 10000 | J81: 10000 | K81: 10000 | L81: 0 | M81: 10000
E82: 35 | F82: 465 | G82: Остале текуће донације по закону | H82: 220000 | J82: 220000 | K82: 220000 | L82: 0 | M82: 220000
E83: 36 | F83: 483 | G83: Новчане казне и пенали по решењу судова | H83: 3000000 | J83: 3000000 | K83: 3000000 | L83: 0 | M83: 3000000
G84: Функција 330: | H84: =SUBTOTAL(9,H77:H83) -> 5541000 | I84: =SUBTOTAL(9,I77:I83) -> 0 | J84: 5541000 | K84: 5541000 | L84: 0 | M84: 5392200
G85: Програмска активност 0602-0004: | H85: =SUBTOTAL(9,H77:H83) -> 5541000 | I85: =SUBTOTAL(9,I77:I83) -> 0 | J85: 5541000 | K85: 5541000 | L85: 0 | M85: 5392200
G86: УКУПНО ЗА ГЛАВУ 4.01: | H86: =SUBTOTAL(9,H77:H83) -> 5541000 | I86: =SUBTOTAL(9,I77:I83) -> 0 | J86: 5541000 | K86: 5541000 | L86: 0 | M86: 5392200
G87: УКУПНО ЗА РАЗДЕО 4: | H87: =SUBTOTAL(9,H77:H86) -> 5541000 | I87: =SUBTOTAL(9,I77:I86) -> 0 | J87: 5541000 | K87: 5541000 | L87: 0 | M87: 5392200
K88: 0 | L88: 0
A89: 5 | B89: 5.01 | G89: ОПШТИНСКА УПРАВА | K89: 0 | L89: 0
C90: 0602 | G90: ПРОГРАМ 15: ЛОКАЛНА САМОУПРАВА | K90: 0 | L90: 0
C91: 0602-0001 | G91: Функционисање локалне самоуправе и градских општина | K91: 0 | L91: 0
D92: 130 | G92: Опште јавне услуге | K92: 0 | L92: 0
E93: 37 | F93: 411 | G93: Плате, додаци и накнаде запосленима | H93: 115025000 | J93: =H93+I93 -> 115025000 | K93: 115025000 | L93: 0 | M93: 107500000
E94: 38 | F94: 412 | G94: Социјални доприноси на терет послодавца | H94: 20590000 | J94: 20590000 | K94: 20590000 | L94: 0 | M94: 19245000
E95: 39 | F95: 413 | G95: Накнаде у натури | H95: =10000+760000-500000+30000 -> 300000 | J95: 300000 | K95: 300000 | L95: 0 | M95: 300000
E96: 40 | F96: 414 | G96: Социјална давања запосленима | H96: 1000000 | J96: 1000000 | K96: 1000000 | L96: 0 | M96: 4500000
E97: 41 | F97: 415 | G97: Накнаде трошкова за запослене | H97: 6250000 | J97: 6250000 | K97: 6250000 | L97: 0 | M97: 5000000
E98: 42 | F98: 416 | G98: Награде, бонуси и остали пословни расхода | H98: 1500000 | J98: 1500000 | K98: 1500000 | L98: 0 | M98: 1500000
E99: 43 | F99: 421 | G99: Стални трошкови | H99: =12000000-500000-200000+2500000 -> 13800000 | J99: 13800000 | K99: 13800000 | L99: 0 | M99: 13800000
E100: 44 | F100: 422 | G100: Трошкови путовања | H100: =2000000 -> 2000000 | J100: 2000000 | K100: 2000000 | L100: 0 | M100: 2000000
E101: 45 | F101: 423 | G101: Услуге по уговору | H101: =15000000+600000 -> 15600000 | J101: 15600000 | K101: 15600000 | L101: 0 | M101: 15800000
E102: 46 | F102: 424 | G102: Специјализоване услуге | H102: =500000+1200000+500000 -> 2200000 | J102: 2200000 | K102: 2200000 | L102: 0 | M102: 2200000
E103: 47 | F103: 425 | G103: Текуће поправке и одржавање | H103: 2000000 | J103: 2000000 | K103: 2000000 | L103: 0 | M103: 2670000
E104: 48 | F104: 426 | G104: Материјал | H104: 9000000 | J104: 9000000 | K104: 9000000 | L104: 0 | M104: 11000000
E105: 49 | F105: 465 | G105: Остале текуће донације по закону | H105: 10000000 | J105: 10000000 | K105: =H105+I105 -> 10000000 | L105: 0 | M105: 11000000
E106: 50 | F106: 482 | G106: Порези , обавезне таксе и казне | H106: =700000-200000+100000 -> 600000 | J106: 600000 | K106: 600000 | L106: 0 | M106: 600000
E107: 51 | F107: 483 | G107: Новчане казне и пенали по решењу судова | H107: 50000 | J107: 50000 | K107: 50000 | L107: 0 | M107: 50000
E108: 52 | F108: 511 | G108: Зграде и грађевински објекти | H108: 10000 | J108: 10000 | K108: 10000 | L108: 0 | M108: 10000
E109: 53 | F109: 512 | G109: Машине и опрема | H109: =1500000-500000+800000+250000 -> 2050000 | J109: 2050000 | K109: 2050000 | L109: 0 | M109: 2800000
E110: 54 | F110: 515 | G110: Нематеријална имовина | H110: 200000 | J110: 200000 | K110: 200000 | L110: 0 | M110: 200000
E111: 55 | F111: 541 | G111: Набавка земљишта | H111: 3000000 | J111: 3000000 | K111: 3000000 | L111: 0 | M111: 2000000
G112: Функција 130: | H112: =SUBTOTAL(9,H93:H111) -> 205175000 | I112: =SUBTOTAL(9,I93:I110) -> 0 | J112: =SUBTOTAL(9,J93:J111) -> 205175000 | K112: 205175000 | L112: 0 | M112: 202175000
G113: Програмска активност 0602-0001: | H113: =SUBTOTAL(9,H93:H111) -> 205175000 | I113: =SUBTOTAL(9,I93:I110) -> 0 | J113: =SUBTOTAL(9,J93:J111) -> 205175000 | K113: 205175000 | L113: 0 | M113: 202175000
K114: 0 | L114: 0
C115: 0602-0001 | G115: Подршка раду извршних органа власти и скупштине | K115: 0 | L115: 0
D116: 160 | G116: Опште јавне услуге које нису класификоване на другом месту | K116: 0 | L116: 0
E117: 56 | F117: 481 | G117: Дотације - Унија бизниса Бујановца | H117: 200000 | J117: =H117+I117 -> 200000 | K117: 200000 | L117: 0 | M117: 50000
E118: 57 | F118: 481 | G118: Дотација - Центар за развој Пчињског и Јабланичког округа | H118: 200000 | J118: 200000 | K118: 200000 | L118: 0 | M118: 200000
E119: 58 | F119: 481 | G119: Дотације - Привредна комора | H119: 50000 | J119: 50000 | K119: 50000 | L119: 0 | M119: 50000
E120: 59 | F120: 481 | G120: Дотација - Стална конференција градова и општина (чланарина) | H120: 500000 | J120: 500000 | K120: 500000 | L120: 0 | M120: 500000
E121: 60 | F121: 481 | G121: Дотација са страним донаторима - фондови ЕУ | H121: 1000000 | J121: 1000000 | K121: 1000000 | L121: 0 | M121: 450000
E122: 61 | F122: 481 | G122: Дотација - Налед | H122: 100000 | J122: 100000 | K122: 100000 | L122: 0 | M122: 100000
E123: 62 | F123: 481 | G123: Дотације - Историјски архив Врање | H123: 470000 | J123: 470000 | K123: 470000 | L123: 0 | M123: 463000
E124: 63 | F124: 481 | G124: Дотација - АЛДА Европска асоцијација за локалну демократију | H124: 75000 | J124: 75000 | K124: 75000 | L124: 0 | M124: 75000
G125: Функција 160: | H125: =SUBTOTAL(9,H117:H124) -> 2595000 | I125: =SUBTOTAL(9,I117:I124) -> 0 | J125: 2595000 | K125: 2595000 | L125: 0 | M125: 1888000
G126: Програмска активност 0602-0001: | H126: =SUBTOTAL(9,H117:H124) -> 2595000 | I126: =SUBTOTAL(9,I117:I124) -> 0 | J126: 2595000 | K126: 2595000 | L126: 0 | M126: 1888000
K127: 0 | L127: 0
C128: 0602-0007 | G128: Функционисање националних савета националних мањина | K128: 0 | L128: 0
D129: 090 | G129: Социјална заштита некласификована на другом месту | K129: 0 | L129: 0
E130: 64 | F130: 481 | G130: Дотације невладиним организацијама - Декада Рома | H130: =1000000+200000 -> 1200000 | J130: =H130+I130 -> 1200000 | K130: 1200000 | L130: 0 | M130: 1000000
E131: 65 | F131: 481 | G131: Дотације невладиним организацијама - Национални савет Албанаца | H131: 5000000 | J131: =H131+I131 -> 5000000 | K131: 5000000 | L131: 0 | M131: 2500000
G132: Функција 090: | H132: =SUBTOTAL(9,H130:H131) -> 6200000 | I132: 0 | J132: 6200000 | K132: 6200000 | L132: 0 | M132: 3500000
G133: Програмска активност 0602-0007: | H133: =SUBTOTAL(9,H130:H131) -> 6200000 | I133: 0 | J133: 6200000 | K133: 6200000 | L133: 0 | M133: 3500000
K134: 0 | L134: 0
C135: 0602-0009 | G135: Текућа буџетска резерва | K135: 0 | L135: 0
D136: 130 | G136: Опште јавне услуге | K136: 0 | L136: =(H136+I136)-J136 -> 0
E137: 66 | F137: 49912 | G137: Текућа резерва | H137: =10000000+2000000+47600-250000-100000-500000-1000000 -> 10197600 | J137: =H137+I137 -> 10197600 | K137: =H137+I137 -> 10197600 | L137: 0 | M137: 7030800
G138: Функција 130: | H138: =SUBTOTAL(9,H137) -> 10197600 | I138: =SUBTOTAL(9,I137) -> 0 | J138: 10197600 | K138: 10197600 | L138: 0 | M138: 7030800
G139: Програмска активност 0602-0009: | H139: =SUBTOTAL(9,H137) -> 10197600 | I139: =SUBTOTAL(9,I137) -> 0 | J139: 10197600 | K139: 10197600 | L139: 0 | M139: 7030800
K140: 0 | L140: 0
C141: 0602-0010 | G141: Стална буџетска резерва | K141: 0 | L141: 0
D142: 130 | G142: Опште јавне услуге | K142: 0 | L142: 0
E143: 67 | F143: 49911 | G143: Стална резерва | H143: 500000 | J143: =H143+I143 -> 500000 | K143: 500000 | L143: 0 | M143: 500000
G144: Функција 130: | H144: =SUBTOTAL(9,H143) -> 500000 | I144: =SUBTOTAL(9,I143) -> 0 | J144: 500000 | K144: 500000 | L144: 0 | M144: 500000
G145: Програмска активност 0602-0010: | H145: =SUBTOTAL(9,H143) -> 500000 | I145: =SUBTOTAL(9,I143) -> 0 | J145: 500000 | K145: 500000 | L145: 0 | M145: 500000
K146: 0 | L146: 0
C147: 0602-0014 | G147: Ванредне ситуације | K147: 0 | L147: 0
D148: 160 | G148: Опште јавне услуге које нису класификоване на другом месту | K148: 0 | L148: 0
E149: 68 | F149: 423 | G149: Услуге по уговору | H149: 1000000 | J149: =H149+I149 -> 1000000 | K149: 1000000 | L149: 0 | M149: 650000
E150: 69 | F150: 425 | G150: Текуће поправке и одржавање | H150: 850000 | J150: =H150+I150 -> 850000 | K150: 850000 | L150: 0 | M150: 850000
G151: Функција 160: | H151: =SUBTOTAL(9,H149:H150) -> 1850000 | I151: =SUBTOTAL(9,I149:I150) -> 0 | J151: =SUBTOTAL(9,J149:J150) -> 1850000 | K151: 1850000 | L151: 0 | M151: 2026000
G152: Програмска активност 0602-0014: | H152: =SUBTOTAL(9,H149:H150) -> 1850000 | I152: =SUBTOTAL(9,I149:I150) -> 0 | J152: =SUBTOTAL(9,J149:J150) -> 1850000 | K152: 1850000 | L152: 0 | M152: 2026000
K153: 0 | L153: 0
G154: ПРОГРАМ 1: ЛОКАЛНИ РАЗВОЈ И ПРОСТОРНО ПЛАНИРАЊЕ | K154: 0 | L154: 0
C155: 1101-0001 | G155: Просторно и урбанистичко планирање | K155: 0 | L155: 0
D156: 160 | G156: Опште јавне услуге које нису класификоване на другом месту | K156: 0 | L156: 0
E157: 70 | F157: 511 | G157: Зграде и грађевински објекти - Израда пројектне документације | H157: =12000000+2000000+1200000-2000000 -> 13200000 | J157: =H157+I157 -> 13200000 | K157: 13200000 | L157: 0 | M157: 17630000
G158: Функција 160: | H158: =SUBTOTAL(9,H157) -> 13200000 | I158: =SUBTOTAL(9,I157) -> 0 | J158: =SUBTOTAL(9,J157) -> 13200000 | K158: 13200000 | L158: 0 | M158: 17630000
K159: 0 | L159: 0
D160: 620 | G160: ЈП "ДИРЕКЦИЈА ЗА ГРАЂЕВИНСКО ЗЕМЉИШТЕ, УРБАНИЗАМ, ПУТЕВЕ И СТАМБЕНЕ ПОСЛОВЕ ОПШТИНЕ БУЈАНОВАЦ" - у Ликвидацији По Закључку о давању сагласности СО Бујановац број 04-73/2017 од 05.10.2017. године на Почетни ликвидациони извештај - број решења АПР: БД 39792/2017 - део обавеза | K160: 0 | L160: 0
E161: 71 | F161: 423 | G161: Услуге по уговору - накнада ликвидационом управнику | H161: 960000 | J161: =H161+I161 -> 960000 | K161: =H161+I161 -> 960000 | L161: 0 | M161: 960000
E162: 72 | F162: 421 | G162: Стални трошкови | H162: 2760000 | J162: =H162+I162 -> 2760000 | L162: 0
E163: 73 | F163: 423 | G163: Услуге по уговору | H163: 206000 | J163: 206000 | L163: 0
E164: 74 | F164: 424 | G164: Специјализоване услуге | H164: 957000 | J164: 957000 | L164: 0
E165: 75 | F165: 425 | G165: Текуће поправке и одржавање | H165: 3877000 | J165: 3877000 | K165: 3877000 | L165: 0 | M165: 182000
E166: 76 | F166: 426 | G166: Материјал | H166: 168000 | J166: 168000 | L166: 0
E167: 77 | F167: 482 | G167: Порези , обавезне таксе и казне | H167: 6000 | J167: 6000 | L167: 0
E168: 78 | F168: 483 | G168: Новчане казне и пенали по решењу судова | H168: 5384000 | J168: 5384000 | L168: 0 | M168: 14840000
E169: 79 | F169: 511 | G169: Зграде и грађевински објекти | H169: 13929000 | J169: 13929000 | L169: 0
E170: 80 | F170: 512 | G170: Машине и опрема | H170: 50000 | J170: 50000 | L170: 0
G171: Функција 620: | H171: =SUBTOTAL(9,H161:H170) -> 28297000 | I171: =SUBTOTAL(9,I162:I168) -> 0 | J171: =SUBTOTAL(9,J161:J170) -> 28297000 | K171: 28297000 | L171: 0 | M171: 24072000
G172: Програмска активност 1101-0001: | H172: =SUBTOTAL(9,H157:H171) -> 41497000 | I172: =SUBTOTAL(9,I157:I171) -> 0 | J172: =SUBTOTAL(9,J157:J171) -> 41497000 | K172: 41497000 | L172: 0 | M172: 41702000
L173: 0
C174: 1101-0002 | G174: Спровођење урбанистичких и просторних планова | K174: =H174+I174 -> 0 | L174: 0
D175: 620 | G175: Развој заједнице | K175: 0 | L175: 0
E176: 81 | F176: 511 | G176: Зграде и грађевински објекти - Уклањање архитектонских баријера у општини Бујановац | H176: 300000 | J176: =H176+I176 -> 300000 | K176: 300000 | L176: 0 | M176: 17630000
G177: Функција 620: | H177: =SUBTOTAL(9,H176) -> 300000 | I177: =SUBTOTAL(9,I176) -> 0 | J177: 300000 | K177: 300000 | L177: 0 | M177: 17630000
G178: Програмска активност 1101-0002: | H178: =SUBTOTAL(9,H174:H176) -> 300000 | I178: =SUBTOTAL(9,I174:I176) -> 0 | J178: 300000 | K178: 300000 | L178: 0 | M178: 41702000
K179: 0 | L179: 0
C180: 1102 | G180: ПРОГРАМ 2: КОМУНАЛНА ДЕЛАТНОСТ | K180: =H180+I180 -> 0 | L180: 0
C181: 1102-0001 | G181: Јавна расвета | K181: 0 | L181: 0
D182: 640 | G182: Улична расвета | K182: 0 | L182: 0
E183: 82 | F183: 421 | G183: Стални трошкови | H183: 18000000 | J183: =H183+I183 -> 18000000 | K183: 18000000 | L183: 0 | M183: 19500000
E184: 83 | F184: 425 | G184: Текуће поправке и одржавање | H184: 2000000 | J184: =H184+I184 -> 2000000 | K184: 2000000 | L184: 0 | M184: 4115000
G185: Функција 640: | H185: =SUBTOTAL(9,H183:H184) -> 20000000 | I185: 0 | J185: 20000000 | K185: 20000000 | L185: 0 | M185: 23615000
G186: Програмска активност 1102-0001: | H186: =SUBTOTAL(9,H183:H184) -> 20000000 | I186: 0 | J186: 20000000 | K186: 20000000 | L186: 0 | M186: 23615000
K187: 0 | L187: 0
C188: 1102-0002 | G188: Уређење и одржавање зеленила | K188: 0 | L188: 0
D189: 660 | G189: Послови становања и заједнице некласификоване на другом месту | K189: 0 | L189: 0
E190: 84 | F190: 424 | G190: Специјализоване услуге - одржавање зеленила | H190: =1200000+150000 -> 1350000 | J190: =H190+I190 -> 1350000 | K190: 1350000 | L190: 0 | M190: 2750000
G191: Функција 660: | H191: =SUBTOTAL(9,H190) -> 1350000 | I191: =SUBTOTAL(9,I190) -> 0 | J191: 1350000 | K191: 1350000 | L191: 0 | M191: 2750000
G192: Програмска активност 1102-0002: | H192: =SUBTOTAL(9,H190) -> 1350000 | I192: =SUBTOTAL(9,I190) -> 0 | J192: 1350000 | K192: 1350000 | L192: 0 | M192: 2750000
K193: 0 | L193: 0
C194: 1102-0003 | G194: Јавна хигијена | K194: 0 | L194: 0
D195: 660 | G195: Послови становања и заједнице некласификоване на другом месту | K195: 0 | L195: 0
E196: 85 | F196: 424 | G196: Специјализоване услуге - метење улица | H196: 12000000 | J196: =H196+I196 -> 12000000 | K196: 12000000 | L196: 0 | M196: 16200000
G197: Функција 660: | H197: =SUBTOTAL(9,H196) -> 12000000 | I197: =SUBTOTAL(9,I196) -> 0 | J197: 12000000 | K197: 12000000 | L197: 0 | M197: 16200000
G198: Програмска активност 1102-0003: | H198: =SUBTOTAL(9,H196) -> 12000000 | I198: =SUBTOTAL(9,I196) -> 0 | J198: 12000000 | K198: 12000000 | L198: 0 | M198: 16200000
K199: 0 | L199: 0
C200: 1102-0004 | G200: Зоохигијена | K200: 0 | L200: =(H200+I200)-J200 -> 0
... 893 more rows

Sheet Osn.skole (hidden)
C1: 2002-0001 | D1: Функција | E1: Позиција | F1: Ек.клас. | H1: 2018 R2 | I1: 2019
D4: 912 | G4: Основна школа ''Бранко Радичевић'' Бујановац
E5: 192 | F5: 463 | G5: Трансфер 421 Стални трошкови | H5: 8160000 | I5: =8572000-272000-100000 -> 8200000
E6: 193 | F6: 463 | G6: Трансфер 422 Трошкови путовања | H6: 4500000 | I6: =7372900-372900-100000-200000 -> 6700000
E7: 194 | F7: 463 | G7: Трансфер 423 Услуге по уговору | H7: 77300 | I7: 169000
E8: 195 | F8: 463 | G8: Трансфер 424 Специјализоване услуге | H8: 162200 | I8: 164000
E9: 196 | F9: 463 | G9: Трансфер 425 Текуће поправке и одржавање | H9: 150000 | I9: 220000
E10: 197 | F10: 463 | G10: Трансфер 426 Материјал | H10: 240000 | I10: 278000
F11: 463 | G11: Трансфер 483 Новчане казне и пенали | H11: 500000 | I11: 0
G12: УКУПНО ЗА ГЛАВУ 19 | H12: =SUBTOTAL(9,H5:H11) -> 13789500 | I12: =SUBTOTAL(9,I5:I11) -> 15731000 | J12: =I12-H12 -> 1941500
D14: 912 | G14: Основна школа ''Мухарем Кадриу'' Велики Трновац
E15: 192 | F15: 463 | G15: Трансфер 421 Стални трошкови | H15: 5360000 | I15: =5540000-100000 -> 5440000
E16: 193 | F16: 463 | G16: Трансфер 422 Трошкови путовања | H16: 1390000 | I16: 1460000
E17: 194 | F17: 463 | G17: Трансфер 423 Услуге по уговору | H17: 200000 | I17: 200000
E18: 195 | F18: 463 | G18: Трансфер 424 Специјализоване услуге | H18: 74000 | I18: 124000
E19: 196 | F19: 463 | G19: Трансфер 425 Текуће поправке и одржавање | H19: 1192000 | I19: =1192000-50000 -> 1142000
E20: 197 | F20: 463 | G20: Трансфер 426 Материјал | H20: 551000 | I20: =551000-51000 -> 500000
F21: 463 | G21: Трансфер 512 Машине и опрема
G22: УКУПНО ЗА ГЛАВУ 20 | H22: =SUBTOTAL(9,H15:H21) -> 8767000 | I22: =SUBTOTAL(9,I15:I21) -> 8866000 | J22: =I22-H22 -> 99000
D24: 912 | G24: Основна школа ''Бора Станковић'' Кленике
E25: 192 | F25: 463 | G25: Трансфер 421 Стални трошкови | H25: 1515200 | I25: =1842000-142000 -> 1700000
E26: 193 | F26: 463 | G26: Трансфер 422 Трошкови путовања | H26: =2375000-59000 -> 2316000 | I26: =2720000-220000-100000 -> 2400000
E27: 194 | F27: 463 | G27: Трансфер 423 Услуге по уговору | H27: 170000 | I27: 245000
E28: 195 | F28: 463 | G28: Трансфер 424 Специјализоване услуге | H28: 60000 | I28: 52000
E29: 196 | F29: 463 | G29: Трансфер 425 Текуће поправке и одржавање | H29: 289500 | I29: 135000
E30: 197 | F30: 463 | G30: Трансфер 426 Материјал | H30: 187000 | I30: 190000
F31: 463 | G31: Трансфер 512 Машине и опрема | H31: =78000+59000 -> 137000 | I31: 120000
G32: УКУПНО ЗА ГЛАВУ 21 | H32: =SUBTOTAL(9,H25:H31) -> 4674700 | I32: =SUBTOTAL(9,I25:I31) -> 4842000 | J32: =I32-H32 -> 167300
D34: 912 | G34: Основна школа ''Вук Стефановић Караџић'' Левосоје
E35: 192 | F35: 463 | G35: Трансфер 421 Стални трошкови | H35: 1146000 | I35: =1623300-123300 -> 1500000
E36: 193 | F36: 463 | G36: Трансфер 422 Трошкови путовања | H36: =1315000+20000 -> 1335000 | I36: =1349300+700 -> 1350000
E37: 194 | F37: 463 | G37: Трансфер 423 Услуге по уговору | H37: 190000 | I37: 190000
E38: 195 | F38: 463 | G38: Трансфер 424 Специјализоване услуге | H38: 80000 | I38: 80000
E39: 196 | F39: 463 | G39: Трансфер 425 Текуће поправке и одржавање | H39: 480000 | I39: 480000
E40: 197 | F40: 463 | G40: Трансфер 426 Материјал | H40: 450000 | I40: 500000
G41: Трансфер 512 Машине и опрема | H41: 400000
G42: УКУПНО ЗА ГЛАВУ 22 | H42: =SUBTOTAL(9,H35:H41) -> 4081000 | I42: =SUBTOTAL(9,I35:I41) -> 4100000 | J42: =I42-H42 -> 19000
D44: 912 | G44: Основна школа ''Десанка Максимовић'' Биљача
E45: 192 | F45: 463 | G45: Трансфер 421 Стални трошкови | H45: 1858400 | I45: 1964000
E46: 193 | F46: 463 | G46: Трансфер 422 Трошкови путовања | H46: 2131200 | I46: 2100000
E47: 194 | F47: 463 | G47: Трансфер 423 Услуге по уговору | H47: 124400 | I47: 118000
E48: 195 | F48: 463 | G48: Трансфер 424 Специјализоване услуге | H48: 30000 | I48: 30000
E49: 196 | F49: 463 | G49: Трансфер 425 Текуће поправке и одржавање | H49: 612000 | I49: =650000-150000 -> 500000
E50: 197 | F50: 463 | G50: Трансфер 426 Материјал | H50: 490000 | I50: 550000
G51: УКУПНО ЗА ГЛАВУ 23 | H51: =SUBTOTAL(9,H45:H50) -> 5246000 | I51: =SUBTOTAL(9,I45:I50) -> 5262000 | J51: =I51-H51 -> 16000
D53: 912 | G53: Основна школа ''Наим Фрашери'' Бујановац
E54: 192 | F54: 463 | G54: Трансфер 421 Стални трошкови | H54: 4870000 | I54: =5540000-340000 -> 5200000
E55: 193 | F55: 463 | G55: Трансфер 422 Трошкови путовања | H55: 945000 | I55: =1190000-90000 -> 1100000
E56: 194 | F56: 463 | G56: Трансфер 423 Услуге по уговору | H56: 100000 | I56: 100000
E57: 195 | F57: 463 | G57: Трансфер 424 Специјализоване услуге | H57: 100000 | I57: 100000
E58: 196 | F58: 463 | G58: Трансфер 425 Текуће поправке и одржавање | H58: 495000 | I58: 495000
E59: 197 | F59: 463 | G59: Трансфер 426 Материјал | H59: 506500 | I59: =506500-206500 -> 300000
G60: Трансфер 512 Машине и опрема | I60: 200000
G61: УКУПНО ЗА ГЛАВУ 24 | H61: =SUBTOTAL(9,H54:H60) -> 7016500 | I61: =SUBTOTAL(9,I54:I60) -> 7495000 | J61: =I61-H61 -> 478500
D63: 912 | G63: Основна школа ''Миђени'' Муховац
E64: 192 | F64: 463 | G64: Трансфер 421 Стални трошкови | H64: 1000000 | I64: =1190000-100000 -> 1090000
E65: 193 | F65: 463 | G65: Трансфер 422 Трошкови путовања | H65: 1500000 | I65: 1700000
E66: 194 | F66: 463 | G66: Трансфер 423 Услуге по уговору | H66: 180000 | I66: 150000
E67: 195 | F67: 463 | G67: Трансфер 424 Специјализоване услуге
E68: 196 | F68: 463 | G68: Трансфер 425 Текуће поправке и одржавање | H68: 680000 | I68: =680000-50000 -> 630000
E69: 197 | F69: 463 | G69: Трансфер 426 Материјал | H69: 440000 | I69: 330000
G70: УКУПНО ЗА ГЛАВУ 25 | H70: =SUBTOTAL(9,H64:H69) -> 3800000 | I70: =SUBTOTAL(9,I64:I69) -> 3900000 | J70: =I70-H70 -> 100000
D72: 912 | G72: Основна школа ''Драгомир Трајковић'' Жбевац
E73: 192 | F73: 463 | G73: Трансфер 421 Стални трошкови | H73: 1129000 | I73: 1200000
E74: 193 | F74: 463 | G74: Трансфер 422 Трошкови путовања | H74: 2190000 | I74: 2300000
E75: 194 | F75: 463 | G75: Трансфер 423 Услуге по уговору | H75: 50000 | I75: 80000
E76: 195 | F76: 463 | G76: Трансфер 424 Специјализоване услуге | H76: 10000 | I76: 30000
E77: 196 | F77: 463 | G77: Трансфер 425 Текуће поправке и одржавање | H77: 240000 | I77: =375000+100000-75000+4000 -> 404000
E78: 197 | F78: 463 | G78: Трансфер 426 Материјал | H78: 195000 | I78: 175000
G79: Трансфер 512 Машине и опрема | I79: 400000
G80: УКУПНО ЗА ГЛАВУ 26 | H80: =SUBTOTAL(9,H73:H78) -> 3814000 | I80: =SUBTOTAL(9,I73:I79) -> 4589000 | J80: =I80-H80 -> 775000
D81: 912 | G81: Основна школа ''Сами Фрашери'' Лучане
E82: 192 | F82: 463 | G82: Трансфер 421 Стални трошкови | H82: 1670000 | I82: =1861000-100000 -> 1761000
E83: 193 | F83: 463 | G83: Трансфер 422 Трошкови путовања | H83: 1360000 | I83: 1481000
E84: 194 | F84: 463 | G84: Трансфер 423 Услуге по уговору | H84: 75000 | I84: 75000
E85: 195 | F85: 463 | G85: Трансфер 424 Специјализоване услуге | H85: 40000 | I85: 40000
E86: 196 | F86: 463 | G86: Трансфер 425 Текуће поправке и одржавање | H86: 490000 | I86: =490000-50000 -> 440000
E87: 197 | F87: 463 | G87: Трансфер 426 Материјал | H87: 500000 | I87: =500000-50000 -> 450000
F88: 463 | G88: Трансфер 512 Машине и опрема | I88: 180000
G89: УКУПНО ЗА ГЛАВУ 27 | H89: =SUBTOTAL(9,H82:H88) -> 4135000 | I89: =SUBTOTAL(9,I82:I88) -> 4427000 | J89: =I89-H89 -> 292000
D91: 912 | G91: Основна школа ''Али Бекташи'' Несалце
E92: 192 | F92: 463 | G92: Трансфер 421 Стални трошкови | H92: 1543000 | I92: 1448000
E93: 193 | F93: 463 | G93: Трансфер 422 Трошкови путовања | H93: 1020000 | I93: 1334000
E94: 194 | F94: 463 | G94: Трансфер 423 Услуге по уговору | H94: 135000 | I94: 165000
E95: 195 | F95: 463 | G95: Трансфер 424 Специјализоване услуге | H95: 45000 | I95: 40000
E96: 196 | F96: 463 | G96: Трансфер 425 Текуће поправке и одржавање | H96: 912000 | I96: 723000
E97: 197 | F97: 463 | G97: Трансфер 426 Материјал | H97: 431000 | I97: 440000
G98: УКУПНО ЗА ГЛАВУ 28 | H98: =SUBTOTAL(9,H92:H97) -> 4086000 | I98: =SUBTOTAL(9,I92:I97) -> 4150000 | J98: =I98-H98 -> 64000
D99: 912 | G99: Основна школа ''Скендербег'' Зарбинце
E100: 192 | F100: 463 | G100: Трансфер 421 Стални трошкови | H100: 255000 | I100: 290000
E101: 193 | F101: 463 | G101: Трансфер 422 Трошкови путовања | H101: 20000 | I101: 50000
E102: 194 | F102: 463 | G102: Трансфер 423 Услуге по уговору
E103: 195 | F103: 463 | G103: Трансфер 424 Специјализоване услуге
E104: 196 | F104: 463 | G104: Трансфер 425 Текуће поправке и одржавање | H104: 150000 | I104: 130000
E105: 197 | F105: 463 | G105: Трансфер 426 Материјал | H105: 45000 | I105: 30000
G106: УКУПНО ЗА ГЛАВУ 29 | H106: =SUBTOTAL(9,H100:H105) -> 470000 | I106: =SUBTOTAL(9,I100:I105) -> 500000 | J106: =I106-H106 -> 30000
D108: 912 | G108: Основна музичка школа | J108: R2 2018 | K108: 2019
E109: 192 | F109: 463 | G109: Трансфер 421 Стални трошкови | H109: 347000 | I109: 417000 | J109: =SUMIF(G:H,G109,H:H) -> 28853600 | K109: =SUMIF(G:I,G109,I:I) -> 30210000 | L109: 31487300 | M109: =L109-K109 -> 1277300
E110: 193 | F110: 463 | G110: Трансфер 422 Трошкови путовања | H110: 1400000 | I110: 1551000 | J110: 20107200 | K110: 23526000 | L110: 24608200 | M110: =L110-K110 -> 1082200
E111: 194 | F111: 463 | G111: Трансфер 423 Услуге по уговору | H111: 100000 | I111: =238000-50000-38000 -> 150000 | J111: 1401700 | K111: 1642000 | L111: 1730000 | M111: 88000
E112: 195 | F112: 463 | G112: Трансфер 424 Специјализоване услуге | H112: 55000 | I112: 56500 | J112: 656200 | K112: 716500 | L112: 716500 | M112: 0
E113: 196 | F113: 463 | G113: Трансфер 425 Текуће поправке и одржавање | H113: 100000 | I113: 154000 | J113: 5790500 | K113: 5453000 | L113: 5824000 | M113: 371000
E114: 197 | F114: 463 | G114: Трансфер 426 Материјал | H114: 75000 | I114: 108000 | J114: 4110500 | K114: 3851000 | L114: 4158500 | M114: 307500
F115: 463 | G115: Трансфер 512 Машине и опрема | I115: 72000 | J115: 537000 | K115: 972000 | L115: 972000 | M115: 0
G116: УКУПНО ЗА ГЛАВУ 30 | H116: =SUBTOTAL(9,H109:H115) -> 2077000 | I116: =SUBTOTAL(9,I109:I115) -> 2508500 | J116: =SUM(J109:J115) -> 61456700 | K116: =SUM(K109:K115) -> 66370500 | L116: =SUBTOTAL(9,L109:L115) -> 69496500 | M116: =SUBTOTAL(9,M109:M115) -> 3126000
H117: =SUBTOTAL(9,H5:H116) -> 61956700 | I117: =SUBTOTAL(9,I5:I116) -> 66370500 | M117: 74000
M118: 400000
M119: 100000
M120: 200000

Sheet Sred.skole (hidden)
C1: 2003 | G1: ПРОГРАМ 10: СРЕДЊЕ ОБРАЗОВАЊЕ | I1: Буџет 2018 | L1: =#REF!+J1+K1 ->  | M1: Извршење до 31.05.2018 | N1: Буџет 2018 Р1 | O1: % | P1: Буџет 2018 Р2 | S1: Буџет 2019
C2: 2003-0001 | G2: Функционисање средњих школа | L2: =I2+J2+K2 -> 0
D3: 920 | G3: Средње образовање | H3: rebalans 2017 | L3: =I1+J3+K3 -> 
G4: Средња стручна школа ''Свети Сава'' Бујановац | L4: 0
F5: 463 | G5: Трансфер 421 Стални трошкови | H5: 6891000 | I5: 7561200 | L5: 7561200 | M5: 3339442.99 | N5: 7561200 | O5: =M5/I5 -> 0.4416551592 | P5: 7581200 | S5: =8053000-53000 -> 8000000 | T5: 2000000 za 483 | X5: 53000
F6: 463 | G6: Трансфер 422 Трошкови путовања | H6: 1950000 | I6: 2020000 | L6: 2020000 | M6: 897574.26 | N6: 2020000 | O6: =M6/I6 -> 0.4443436931 | P6: 2020000 | S6: =2221000-21000 -> 2200000 | X6: 21000
F7: 463 | G7: Трансфер 423 Услуге по уговору | H7: 730000 | I7: =1610000-300000 -> 1310000 | L7: 1310000 | M7: 732440 | N7: 1310000 | O7: 0.5591145038 | P7: 1290000 | S7: 1850000
F8: 463 | G8: Трансфер 424 Специјализоване услуге | H8: 71000 | I8: 146000 | L8: 146000 | M8: 49701 | N8: 146000 | O8: 0.3404178082 | P8: 146000 | S8: 146000
F9: 463 | G9: Трансфер 425 Текуће поправке и одржавање | H9: 342000 | I9: 342000 | L9: 342000 | M9: 50000 | N9: =342000+200000-9790+500000 -> 1032210 | O9: 0.1461988304 | P9: 942000 | S9: 352000
F10: 463 | G10: Трансфер 426 Материјал | H10: 402000 | I10: 420000 | L10: 420000 | M10: 95955 | N10: 420000 | O10: 0.2284642857 | P10: 420000 | S10: 420000
G11: Трансфер 512 Машине и опрема | L11: 0 | S11: 350000
G12: Функција 920: | H12: =SUBTOTAL(9,H5:H11) -> 10386000 | I12: =SUBTOTAL(9,I5:I11) -> 11799200 | J12: =SUBTOTAL(9,J5:J10) -> 0 | K12: =SUBTOTAL(9,K5:K10) -> 0 | L12: =SUBTOTAL(9,L5:L10) -> 11799200 | M12: =SUBTOTAL(9,M5:M11) -> 5165113.25 | N12: =SUBTOTAL(9,N5:N11) -> 12489410 | O12: 0.4377511399 | P12: =SUBTOTAL(9,P5:P11) -> 12399200 | S12: =SUBTOTAL(9,S5:S11) -> 13318000
G13: Програмска активност 2003-0001: | H13: =SUBTOTAL(9,H5:H11) -> 10386000 | I13: =SUBTOTAL(9,I5:I11) -> 11799200 | J13: =SUBTOTAL(9,J5:J10) -> 0 | K13: =SUBTOTAL(9,K5:K10) -> 0 | L13: =SUBTOTAL(9,L5:L10) -> 11799200 | M13: =SUBTOTAL(9,M5:M11) -> 5165113.25 | N13: =SUBTOTAL(9,N5:N11) -> 12489410 | O13: 0.4377511399 | P13: =SUBTOTAL(9,P5:P11) -> 12399200 | S13: =SUBTOTAL(9,S5:S11) -> 13318000
H14: =SUBTOTAL(9,H5:H10) -> 10386000 | I14: =SUBTOTAL(9,I5:I11) -> 11799200 | J14: =SUBTOTAL(9,J5:J10) -> 0 | K14: =SUBTOTAL(9,K5:K10) -> 0 | L14: =SUBTOTAL(9,L5:L10) -> 11799200 | M14: =SUBTOTAL(9,M5:M11) -> 5165113.25 | N14: =SUBTOTAL(9,N5:N11) -> 12489410 | O14: 0.4377511399 | P14: =SUBTOTAL(9,P5:P11) -> 12399200 | S14: =SUBTOTAL(9,S5:S11) -> 13318000
L15: =I15+J15+K15 -> 0
D16: 920 | G16: Средња школа ''Сезаи Сурои'' Бујановац | L16: 0 | T16: 2018 R1 | U16: 2018 R2 | V16: 2019
F17: 463 | G17: Трансфер 421 Стални трошкови | H17: 5000000 | I17: 5500000 | L17: 5500000 | M17: 3689993.6 | N17: =6088000-88000 -> 6000000 | O17: 0.6709079273 | P17: 6000000 | Q17: =SUMIF(G:H,G17,H:H) -> 11891000 | R17: =SUMIF(G:I,G17,I:I) -> 13061200 | S17: 6000000 | T17: =SUMIF(G:I,G17,N:N) -> 13561200 | U17: =SUMIF(G:P,G17,P:P) -> 13581200 | V17: =SUMIF(G:S,G17,S:S) -> 14000000
F18: 463 | G18: Трансфер 422 Трошкови путовања | H18: 4150000 | I18: =4588475-475 -> 4588000 | L18: 4588000 | M18: 1900315.67 | N18: 4100000 | O18: 0.4141926046 | P18: 4100000 | Q18: 6100000 | R18: 6608000 | S18: 4100000 | T18: 6120000 | U18: =SUMIF(G:P,G18,P:P) -> 6120000 | V18: =SUMIF(G:S,G18,S:S) -> 6300000
F19: 463 | G19: Трансфер 423 Услуге по уговору | H19: 443000 | I19: 443000 | L19: 443000 | M19: 182165 | N19: 363000 | O19: 0.4112076749 | P19: 363000 | Q19: 1173000 | R19: 1753000 | S19: 363000 | T19: 1673000 | U19: 1653000 | V19: 2213000
F20: 463 | G20: Трансфер 424 Специјализоване услуге | H20: 109500 | I20: 209500 | L20: 209500 | M20: 234140 | N20: 289500 | O20: 1.117613365 | P20: 289500 | Q20: 180500 | R20: 355500 | S20: 289500 | T20: 435500 | U20: 435500 | V20: 435500
F21: 463 | G21: Трансфер 425 Текуће поправке и одржавање | H21: 1149500 | I21: =755000-400000 -> 355000 | L21: 355000 | M21: 325691.19 | N21: 555000 | O21: 0.9174399718 | P21: 555000 | Q21: 1491500 | R21: 697000 | S21: 555000 | T21: 1587210 | U21: 1497000 | V21: 907000
F22: 463 | G22: Трансфер 426 Материјал | H22: 899000 | I22: 799000 | L22: 799000 | M22: 365264.2 | N22: 699000 | O22: 0.4571516896 | P22: 699000 | Q22: 1301000 | R22: 1219000 | S22: 699000 | T22: 1119000 | U22: 1119000 | V22: 1119000
F23: 463 | G23: Трансфер 483 Новчане казне и пенали по решењу судова | I23: 30000 | L23: 30000 | N23: 30000 | P23: 30000 | Q23: 0 | R23: 30000 | S23: 30000 | T23: 30000 | U23: 30000 | V23: 30000
G24: Трансфер 512 Машине и опрема | L24: 0 | Q24: 0 | R24: 0 | T24: 0 | U24: 0 | V24: 350000
G25: Функција 920: | H25: =SUBTOTAL(9,H17:H23) -> 11751000 | I25: =SUBTOTAL(9,I17:I24) -> 11924500 | J25: =SUBTOTAL(9,J17:J23) -> 0 | K25: =SUBTOTAL(9,K17:K23) -> 0 | L25: =SUBTOTAL(9,L17:L23) -> 11924500 | M25: =SUBTOTAL(9,M17:M24) -> 6697569.66 | N25: =SUBTOTAL(9,N17:N24) -> 12036500 | O25: =M25/I25 -> 0.5616646115 | P25: =SUBTOTAL(9,P17:P24) -> 12036500 | S25: =SUBTOTAL(9,S17:S24) -> 12036500
G26: Програмска активност 2003-0001: | H26: =SUBTOTAL(9,H17:H23) -> 11751000 | I26: =SUBTOTAL(9,I17:I24) -> 11924500 | J26: =SUBTOTAL(9,J17:J23) -> 0 | K26: =SUBTOTAL(9,K17:K23) -> 0 | L26: =SUBTOTAL(9,L17:L23) -> 11924500 | M26: =SUBTOTAL(9,M17:M24) -> 6697569.66 | N26: =SUBTOTAL(9,N17:N24) -> 12036500 | O26: 0.5616646115 | P26: =SUBTOTAL(9,P17:P24) -> 12036500 | S26: =SUBTOTAL(9,S17:S24) -> 12036500
H27: =SUBTOTAL(9,H17:H23) -> 11751000 | I27: =SUBTOTAL(9,I17:I24) -> 11924500 | J27: =SUBTOTAL(9,J17:J23) -> 0 | K27: =SUBTOTAL(9,K17:K23) -> 0 | L27: =SUBTOTAL(9,L17:L23) -> 11924500 | M27: =SUBTOTAL(9,M17:M24) -> 6697569.66 | N27: =SUBTOTAL(9,N17:N24) -> 12036500 | O27: 0.5616646115 | P27: =SUBTOTAL(9,P17:P24) -> 12036500 | R27: =SUM(R17:R23) -> 23723700 | S27: =SUBTOTAL(9,S17:S24) -> 12036500 | T27: =SUM(T17:T23) -> 24525910 | U27: =SUM(U17:U23) -> 24435700 | V27: =SUM(V17:V24) -> 25354500
I28: =SUBTOTAL(9,I5:I27) -> 23723700 | M28: =SUBTOTAL(9,M5:M27) -> 11862682.91 | N28: =SUBTOTAL(9,N5:N27) -> 24525910 | P28: =SUBTOTAL(9,P5:P27) -> 24435700 | S28: =SUBTOTAL(9,S5:S27) -> 25354500

Sheet Програми (hidden)
A2: Члан 4.
A4: Расходи и издаци из члана 1. ове одлуке користе се за следеће програме:
A6: НАЗИВ ПРОГРАМА | B6: ИЗНОС | C6: СТРУКТУРА %
A7: Програм 1. Урбанизам и просторно планирање | B7: =Прог.актив.!F7 -> 41797000 | C7: =B7/$B$24 -> 0.03941389705
A8: Програм 2. Комунална делатност | B8: =Прог.актив.!F10 -> 76772000 | C8: 0.0723947581
A9: Програм 3. Локални економски развој | B9: =Прог.актив.!F18 -> 25000000 | C9: 0.02357459689
A10: Програм 4. Развој туризма | B10: =Прог.актив.!F21 -> 9026500 | C10: 0.008511843953
A11: Програм 5. Развој пољопривреде | B11: =Прог.актив.!F23 -> 22400000 | C11: 0.02112283881
A12: Програм 6. Заштита животне средине | B12: =Прог.актив.!F25 -> 31350000 | C12: 0.0295625445
A13: Програм 7. Организација саобраћаја и саобраћајна инфраструктура | B13: =Прог.актив.!F30 -> 187273000 | C13: 0.1765954193
A14: Програм 8. Предшколско васпитање | B14: =Прог.актив.!F107 -> 110543000 | C14: 0.1042402666
A15: Програм 9. Основно образовање | B15: =Прог.актив.!F109 -> 78064200 | C15: 0.07361328186
A16: Програм 10. Средње образовање | B16: =Прог.актив.!F111 -> 44527500 | C16: 0.04198871452
A17: Програм 11. Социјална и дечија заштита | B17: =Прог.актив.!F113 -> 22840000 | C17: 0.02153775172
A18: Програм 12. Примарна здравствена заштита | B18: =Прог.актив.!F119 -> 23000000 | C18: 0.02168862914
A19: Програм 13. Развој културе | B19: =Прог.актив.!F122 -> 57172000 | C19: 0.05391227413
A20: Програм 14. Развој спорта и омладине | B20: =Прог.актив.!F130 -> 35416200 | C20: 0.03339690553
A21: Програм 15. Локална самоуправа | B21: =Прог.актив.!F137 -> 239028600 | C21: 0.2254001156
A22: Програм 16: Политички систем локалне самоуправе | B22: =Прог.актив.!F145 -> 37420000 | C22: 0.03528645662
A23: Програм 17: Енергетска ефикасност и обновљиви извори енергије | B23: =Прог.актив.!F149 -> 18833520 | C23: 0.01775970568
A24: UKUPNO ZA PROGRAM OD 1 DO 17: | B24: =SUBTOTAL(9,B7:B23) -> 1060463520

Sheet ekonomska reb1 (hidden)
A1: еко.клас. | D1: ОПИС | H1: Средства из буџета | I1: Средства из соп. извора | J1: Sredstva iz Republike | K1: Укупно
A2: 1 | D2: 2 | H2: 3 | I2: 4 | J2: 5 | K2: 6
A3: 400 | D3: TEKU]I RASHODI | H3: =H11+H18+H21+H25+H27+H32+H34 -> 695237589 | I3: =I11+I18+I21+I25+I27+I32+I34 -> 41130000 | J3: =J11+J18+J21+J25+J27+J32+J34 -> 34322300 | K3: =K11+K18+K21+K25+K27+K32+K34 -> 770689889
A4: 411 | D4: Плате, додаци и накнаде запосленима | H4: 204714900 | J4: 5785000 | K4: =H4+I4+J4 -> 210499900
A5: 412 | D5: Социјални доприноси на терет послодавца | H5: 36644000 | J5: 1037020 | K5: =H5+I5+J5 -> 37681020
A6: 413 | D6: Накнаде у натури | H6: 5000 | K6: 5000
A7: 414 | D7: Социјана давања запосленима | H7: =5427600-30000 -> 5397600 | J7: 1056000 | K7: 6453600
A8: 415 | D8: Накнаде трошкова за запослене | H8: 4700900 | J8: 2780000 | K8: 7480900
A9: 416 | D9: Награде, бонуси и остали пословни расхода | H9: 1564200 | J9: 1000000 | K9: 2564200
A10: 417 | D10: Poslani~ki dodatak | K10: 0
A11: 410 | D11: РАСХОДИ ЗА ЗАПОСЛЕНЕ | H11: =H4+H5+H6+H7+H8+H9+H10 -> 253026600 | I11: =I4+I5+I6+I7+I8+I9+I10 -> 0 | J11: =J4+J5+J6+J7+J8+J9+J10 -> 11658020 | K11: =K4+K5+K6+K7+K8+K9+K10 -> 264684620
A12: 421 | D12: Стални трошкови | H12: 36395500 | J12: 8683280 | K12: =J12+I12+H12 -> 45078780
A13: 422 | D13: Трошкови путовања | H13: 2845000 | J13: 166500 | K13: 3011500
A14: 423 | D14: Услуге по уговору | H14: =45726000+545000 -> 46271000 | I14: 2386000 | J14: 2874100 | K14: 51531100
A15: 424 | D15: Специјализоване услуге | H15: 10695000 | J15: 465000 | K15: 11160000
A16: 425 | D16: Текуће поправке и одржавање | H16: =7888000+18939915+490000 -> 27317915 | I16: 26900000 | J16: 677200 | K16: 54895115
A17: 426 | D17: Материјал | H17: =12659700+3300000 -> 15959700 | J17: 7277800 | K17: 23237500
A18: 420 | D18: КОРИШЋЕЊЕ УСЛУГА И РОБА | H18: =H12+H13+H14+H15+H16+H17 -> 139484115 | I18: =I12+I13+I14+I15+I16+I17 -> 29286000 | J18: =J12+J13+J14+J15+J16+J17 -> 20143880 | K18: =K12+K13+K14+K15+K16+K17 -> 188913995
A19: 451 | D19: Subvencije | H19: =20000000+7000000+5000000 -> 32000000 | K19: =J19+I19+H19 -> 32000000
A20: 454 | D20: Subvencije privatnim preduze|ima | H20: 44130000 | K20: =J20+I20+H20 -> 44130000
A21: 450 | D21: SUBVENCIJE | H21: =H19+H20 -> 76130000 | I21: =I19 -> 0 | J21: =J19 -> 0 | K21: =K19+K20 -> 76130000
A22: 463 | D22: Transferi osltalim nivoima vlasti | H22: =94293000+2890000+26000000+30000 -> 123213000 | K22: =J22+I22+H22 -> 123213000
A23: 464 | D23: Dotacije organizacijama obaveznog soc.osigurawa | H23: =22300000+150000 -> 22450000 | K23: =H23+I23+J23 -> 22450000
A24: 465 | D24: Ostale teku}e doacije po zakonu | H24: 20275200 | J24: 1100000 | K24: =H24+I24+J24 -> 21375200
A25: 460 | D25: DONACIJE, DOTACIJE I TRANSFERI | H25: =H22+H24+H23 -> 165938200 | I25: =I22+I24+I23 -> 0 | J25: =J22+J24 -> 1100000 | K25: =K22+K24+K23 -> 167038200
A26: 472 | D26: Naknade za socijalnu za{titu iz buxeta | H26: =12405000+3635000 -> 16040000 | I26: =8664000+180000 -> 8844000 | K26: =J26+I26+H26 -> 24884000
A27: 470 | D27: СОЦИЈАЛНО ОСИГУРАЊЕ И СОЦИЈАЛНА ЗАШ. | H27: =H26 -> 16040000 | I27: =I26 -> 8844000 | J27: =J26 -> 0 | K27: =K26 -> 24884000
A28: 481 | D28: Дотације невладиним организацијама | H28: =22733000+2680000 -> 25413000 | I28: 3000000 | K28: =J28+I28+H28 -> 28413000
A29: 482 | D29: Порези , обавезне таксе и казне | H29: 762500 | J29: 120400 | K29: =J29+I29+H29 -> 882900
A30: 483 | D30: Нов~ане казне и пенали по решењу судова | H30: =3390000+200000+3145000 -> 6735000 | J30: 1300000 | K30: =J30+I30+H30 -> 8035000
A31: 485 | D31: Накнада штете за неискоришћен годишњи одмор | H31: 900000 | K31: =J31+I31+H31 -> 900000
A32: 480 | D32: ОСТАЛИ РАСХОДИ | H32: =H28+H29+H30+H31 -> 33810500 | I32: =I28+I29+I30+I31 -> 3000000 | J32: 1420400 | K32: 38230900
A33: 499 | D33: Sredstva rezerve | H33: =100000+14343174-490000-3145000 -> 10808174 | K33: =J33+I33+H33 -> 10808174
A34: 490 | D34: СРЕДСТВА РЕЗЕРВИ | H34: =H33 -> 10808174 | I34: =I33 -> 0 | J34: =J33 -> 0 | K34: =K33 -> 10808174
A36: 500 | D36: KAPITALNI IZDACI | H36: =H40 -> 99909961 | I36: =I40 -> 97939450 | J36: 1140700 | K36: 198990111
A37: 511 | D37: Зграде и грађевински објекти | H37: =9380000+79044461 -> 88424461 | I37: =20000000+77939450 -> 97939450 | J37: 115000 | K37: =J37+I37+H37 -> 186478911
A38: 512 | D38: Машине и опрема | H38: =4420500+6560000 -> 10980500 | J38: 935700 | K38: =J38+I38+H38 -> 11916200
A39: 515 | D39: Нематеријална имовина | H39: 505000 | J39: 90000 | K39: =J39+I39+H39 -> 595000
A40: 510 | D40: ОСНОВНА СРЕДСТВА | H40: =H37+H38+H39 -> 99909961 | I40: =I37+I38+I39 -> 97939450 | J40: =J37+J38+J39 -> 1140700 | K40: =K37+K38+K39 -> 198990111
D41: У К У П Н I JAVNI RASHODI | H41: =H3+H40 -> 795147550 | I41: =I3+I40 -> 139069450 | J41: 35463000 | K41: 969680000

Sheet Sheet4 (hidden)

Sheet Sheet6 (hidden)
